{"text_format":"1","workbook":"xlsx","n_sheets":8,"sheets":["ФинЧасть","Заявка РП","Текст письмо РП","Для гр.Старт АП","Календарник","ДанныеОткрытие","ДанныеПерсонал","Формулы"],"not_rendered":{"charts":0,"images":0,"macros":1,"external_links":0,"defined_names":2,"comments":1,"pivot_tables":0},"unopened":[],"bounds":{"document_bytes":16777216,"sheet_cells":100000,"rows_first":2000,"rows_last":500,"rows_between":2000,"halvings":0,"cell_chars":16384,"cell_head_chars":4096},"cells_cut":0,"cells_raw":0,"read":"whole","date_system":"1900"}

{"sheet":"ФинЧасть","index":0,"n_rows":11,"n_cols":7,"rows_kept":11,"cut":false,"hidden":true,"merged":[[6,0,6,3],[7,0,7,3],[8,0,8,3],[9,0,9,3],[10,0,10,3],[5,0,5,3],[0,0,0,3],[1,0,1,3],[2,0,2,3],[3,0,3,3],[4,0,4,3]]}
["Командировка продавца-кассира с 04.06 по 19.06 Елена Бузмакова 8-900-375-86-64 (Ср 30000) ЕКБ Белинского В ФОТ для бюджета на выезд (Ср.ЗП)*1,5 =45000+ндфл 2243 (за месячную норму часов+переработки)"]
["Командировка ЗУМ с 04.06 по 19.06 Ксения Распопина 8-922-210-34-46 (Ср 39000) ЕКБ Белинского В ФОТ для бюджета на выезд (Ср.ЗП)*1,5 =58500+ндфл 2550 (за месячную норму часов+переработки)"]
["Командировка продавца с ... по ... Крокодилов Сергей Иванович 8-900-041-65-94(Ср 29100), ЕКБ Гранат, В ФОТ для бюджета на выезд (Ср.ЗП)*1,5=43650+ндфл 2243 руб (за месячную норму часов+переработки)"]
["Командировка Ст. кладовщик с 27.05 по 17.06 Фазилов Илья Ибрагимович 8-963-446-15-63(Ср 31500), ЕКБ Грибоедова, В ФОТ для бюджета на выезд (Ср.ЗП)*1,5=47250+ндфл 2691 руб (за месячную норму часов+переработки)"]
["Командировка кладовщик с ... по ... Грачев Игорь Михайлович 8-977-287-21-88(Ср 34900), МСК Мытищи Селезнева, В ФОТ для бюджета на выезд (Ср.ЗП)*1,5=52350+ндфл 1950 руб (за месячную норму часов+переработки)"]
["Командировка ЗУМ с 27.05 по 17.06 Давыдова Наталья Игоревна 8-901-71-51-499(Ср 48500) МСК Одинцово В ФОТ для бюджета на выезд Ср.ЗП*1,5 =72750+ндфл 2845 руб(за месячную норму часов+переработки) "]
["Командировка Ст. кассира с 08.06 по 17.06 Бондаренко Александра Леонидовна 8-982-649-60-66(Ср 32000) ЕКБ Гранат В ФОТ для бюджета на выезд Ср.ЗП*1,5 =24000+ндфл 2550(за 88 часов)",null,null,null,null,88,{"$f":"32000*F7/176*1.5","v":24000}]
["Командировка Ст. кассира с 25.08 по 08.09 Шелковникова Татьяна Павловна 8-919-766-50-10(Ср 42530) МСК Раменское Михалевича В ФОТ для бюджета на выезд Ср.ЗП*1,5 = 55821 + ндфл 2600(за 154 час)",null,null,null,14,{"$f":"E8*11","v":154},{"$f":"42530*F8/176*1.5","v":55820.625}]
["Командировка Ст. кассира с 04.06 по 17.06 Татьяна Храмова 8-982-611-41-75 (Ср 32000) ЕКБ Белинского В ФОТ для бюджета на выезд (Ср.ЗП)*1,5 =18000+ндфл 2550(за 66 часов)",null,null,null,null,66,{"$f":"32000*F9/176*1.5","v":18000}]
["Командировка ЗУМ с 04.06 по 19.06 Ильиных Евгений 8-982-638-62-01 (Ср 39000 ) ЕКБ Мегаполис В ФОТ для бюджета на выезд (Ср.ЗП)*1,5 =58500+ндфл 2550  (за месячную норму часов+переработки)"]
["Командировка ЗУМ с 04.06 по 19.06 Никита Ячменников 8-908-919-25-31 (Ср 39000) ЕКБ Бабушкина В ФОТ для бюджета на выезд (Ср.ЗП)*1,5 =58500+ндфл 2550 (за месячную норму часов+переработки)"]

{"sheet":"Заявка РП","index":1,"n_rows":64,"n_cols":6,"rows_kept":64,"cut":false,"hidden":false,"merged":[[52,1,52,3],[32,2,32,3],[31,2,31,3],[22,1,22,3],[23,1,23,3],[24,1,24,3],[27,1,27,3],[26,1,26,3],[0,0,0,3],[1,0,1,3],[2,0,2,3],[3,0,3,3],[4,0,4,3],[11,0,11,3],[45,1,45,3],[6,0,6,3],[7,0,7,3],[9,0,9,3],[10,0,10,3],[8,0,8,3],[16,0,16,3],[15,0,15,3],[14,0,14,3],[13,0,13,3],[12,0,12,3],[20,1,20,3],[21,1,21,3],[17,0,17,3]]}
[{"$f":"Формулы!A23","v":"г. Москва ТЦ Ангара"}]
[{"$f":"Формулы!A24","v":"Аренда учебного класса с 25.08 по 06.09 - 13 дней"}]
["К командировкам всех сотрудников добавлен 2 дня - до и 1 день - после, на дорогу и заселение."]
[{"$f":"Формулы!A25","v":"Командировка тренера №1 - с 24.08 по 06.09"}]
[{"$f":"Формулы!A26","v":"Командировка тренера №2 - с 30.08 по 19.09"}]
["Старт ап:"]
[{"$f":"Формулы!A2","v":"Командировка ЗУМ с 0 по 0 Сбродов Дмитрий, 8-987-843-14-45, (ср. 33000), ЕКБ Оренбург Салмышская , в ФОТ для бюджета на выезд (Ср.ЗП)*1,5 = 49500 + ндфл 1950 руб  (за месячную норму часов+переработки)"}]
[{"$f":"Формулы!A3","v":"Командировка ЗУМ с 07.08 по 25.08 Собянин Сергей Александрови, 8-908-904-44-51, (ср. 0), ЕКБ Екат Космонавтов Белка , в ФОТ для бюджета на выезд (Ср.ЗП)*1,5 = 0 + ндфл 0 руб  (за месячную норму часов+переработки)"}]
[{"$f":"Формулы!A4","v":"Командировка ЗУМ с 0 по 0 Невсевря Павел Викторович, 8-927-711-64-85, (ср. 0), ЕКБ Самара Вива Лэнд , в ФОТ для бюджета на выезд (Ср.ЗП)*1,5 = 0 + ндфл 0 руб  (за месячную норму часов+переработки)"}]
[{"$f":"Формулы!A5","v":"Командировка ЗУМ  с 0 по 0 Карпова Екатерина Васильевна, 8-964-996-99-98, (ср. 0), ЕКБ Саратов ТЦ Хэппи Молл , в ФОТ для бюджета на выезд (Ср.ЗП)*1,5 = 0 + ндфл 0 руб  (за месячную норму часов+переработки)"}]
[{"$f":"Формулы!A6","v":"Командировка ЗУМ  с 0 по 0 Гришакова Ольга, 8-905-836-63-06, (ср. 0), ЕКБ Челябинск Героев Танкограда , в ФОТ для бюджета на выезд (Ср.ЗП)*1,5 = 0 + ндфл 0 руб  (за месячную норму часов+переработки)"}]
[{"$f":"Формулы!A7","v":"Командировка Ст кассир с 0 по 0 Храмова Татьяна , 8-982-611-41-75, (ср. 34400), ЕКБ Белинского , в ФОТ для бюджета на выезд (Ср.ЗП)*1,5 = 439,772727272727 + ндфл 2210 руб  (за месячную норму часов+переработки)"}]
[{"$f":"Формулы!A8","v":"Командировка Ст кассир с 0 по 0 Шелковникова Татьяна, 8-919-766-50-10, (ср. 43920), МСК Раменское , в ФОТ для бюджета на выезд (Ср.ЗП)*1,5 = 0 + ндфл 2210 руб  (за месячную норму часов+переработки)"}]
[{"$f":"Формулы!A9","v":"Командировка Ст кассир с 0 по 0 Бондаренко Александра, 8-982-649-60-66, (ср. 34400), ЕКБ Гранат , в ФОТ для бюджета на выезд (Ср.ЗП)*1,5 = 25800 + ндфл 2210 руб  (за месячную норму часов+переработки)"}]
[{"$f":"Формулы!A10","v":"Командировка Ст. кассир с 0 по 0 Карташова Дарья, 8-960-820-08-24, (ср. 0), ЕКБ Самара ТЦ Мир , в ФОТ для бюджета на выезд (Ср.ЗП)*1,5 = 0 + ндфл 0 руб  (за месячную норму часов+переработки)"}]
[{"$f":"Формулы!A11","v":"Командировка Продавец-кассир с 0 по 0 Крокодилов Сергей, 8-900-041-65-94, (ср. 31200), ЕКБ Гранат , в ФОТ для бюджета на выезд (Ср.ЗП)*1,5 = 46800 + ндфл 1950 руб  (за месячную норму часов+переработки)"}]
[{"$f":"Формулы!A12","v":"Командировка Ст.кладовщик с 0 по 0 Фазилов Илхомжон, 8-963-446-15-63, (ср. 34400), ЕКБ Грибоедова , в ФОТ для бюджета на выезд (Ср.ЗП)*1,5 = 51600 + ндфл 2210 руб  (за месячную норму часов+переработки)"}]
[]
["Дата","Старшие кассиры, ЗУМы","Продавцы – кассиры","Кладовщики"]
[{"$f":"ДанныеОткрытие!B6-1+1","v":"2019-08-24"},null,null,null,"Приезд тренера 1",{"$f":"A1","v":"г. Москва ТЦ Ангара"}]
[{"$f":"A20+1","v":"2019-08-25"},"Вводный курс. Рег. внешний вид магазина. Рег. внешний вид сотрудников. Рег. общения продавца с покупателем. Рег. общения кассира с покупателем. Рег. хранение товара на складе. Проверки тайный покупатель. Регламенты СБ – 6 регламентов.",null,null,null,{"$f":"A2","v":"Аренда учебного класса с 25.08 по 06.09 - 13 дней"}]
[{"$f":"A21+1","v":"2019-08-26"},"Рег. работы с браком. Рег. списания товара. Рег. Продажа товара с дефектом. Рег. Ценовые категории товара. Виды ценников и правила их размещения в ТЗ.",null,null,null,{"$f":"A3","v":"К командировкам всех сотрудников добавлен 2 дня - до и 1 день - после, на дорогу и заселение."}]
["2019-08-27","Работа с ценовыми категориями товаров, смена промо, распродажа еденичек, 1-5-10. Работа со списками. Проверки КРО",null,null,null,{"$f":"A4","v":"Командировка тренера №1 - с 24.08 по 06.09"}]
["2019-08-28","1С: Базы 1С и обмены данными, интерфейс, номенклатура, печать ценников и стикеров, переоценки, отчет по остаткам и по движению товара.",null,null,null,{"$f":"A5","v":"Командировка тренера №2 - с 30.08 по 19.09"}]
["2019-08-29","Инвентаризации. Повторение.",null,null,null,{"$f":"Формулы!B49","v":"Первая поставка - 06.09"}]
["2019-08-30","выходной","выходной","выходной","Приезд тренера 2",{"$f":"Формулы!B50","v":"Техническое открытие - 19.09"}]
["2019-08-31","Ассортимент, Касса для продавцов",null,null,null,{"$f":"Формулы!B51","v":"Праздничное открытие - 28.09"}]
["2019-09-01","Мерчендайзинг"]
["2019-09-02","Касса","Касса","Приемка товара. Возврат качеств. товара на Ц.С. Общие регл.склад детально + приемка товара. 1С: журналы кладовщика. (магазин)"]
["2019-09-03","Касса","Повторение","Приемка товара. Возврат качеств. товара на Ц.С. Общие регл.склад детально + приемка товара. 1С: журналы кладовщика. (магазин)"]
["2019-09-04","Касса","Повторение, экзамен","Повторение, экзамен"]
["2019-09-05","Касса","Приемка сборки ТО, разметка полок по залу",null,"Приезд  старт-ап"]
["2019-09-06","Экзамен","Поставка товара -разгрузка, приемка",null,"Отъезд тренера 1"]
["2019-09-07","Выкладка товара","Выкладка товара","Приемка товара"]
["2019-09-08","Выкладка товара","Выкладка товара","Приемка товара"]
["2019-09-09","Выкладка товара","Выкладка товара","Приемка товара"]
["2019-09-10","Выкладка товара","Выкладка товара","Приемка товара"]
["2019-09-11","Выкладка товара","Выкладка товара","Приемка товара"]
["2019-09-12","Выкладка товара","Выкладка товара","Приемка товара"]
["2019-09-13","Выкладка товара","Выкладка товара","Приемка товара"]
["2019-09-14","Выкладка товара","Выкладка товара","Приемка товара"]
["2019-09-15","Выкладка товара","Выкладка товара","Приемка товара"]
["2019-09-16","Выкладка товара","Выкладка товара","Приемка товара"]
["2019-09-17","Выкладка товара","Выкладка товара","Приемка товара","Приезд ст кассира старт ап"]
["2019-09-18","Ценники, порядок в зале","Ценники, порядок в зале","Ценники, порядок в зале"]
["2019-09-19","Техническое открытие"]
["2019-09-20",null,null,null,"Отъезд тренера 2"]
["2019-09-21"]
["2019-09-22"]
["2019-09-23"]
["2019-09-24"]
["2019-09-25"]
["2019-09-26","Праздничное открытие"]
["2019-09-27",null,null,null,"Отъезд  старт-ап"]
["2019-09-28"]
["2019-09-29"]
["2019-09-30"]
["2019-10-01"]
["2019-10-02"]
["2019-10-03"]
["2019-10-04"]
["2019-10-05"]
["2019-10-06"]
["2019-10-07"]

{"sheet":"Текст письмо РП","index":2,"n_rows":4,"n_cols":2,"rows_kept":4,"cut":false,"hidden":false,"merged":[]}
["ТЕМА",{"$f":"Формулы!B65","v":"Данные по старт-ап команде г. Москва ТЦ Ангара"}]
["ТЕКСТ",{"$f":"Формулы!A59","v":"Во вложении файл с датами командировки в г. Москва старт-ап команды, ФИО участников и их расчетная часть з/п.\nК командировкам всех сотрудников добавлен 1 дня -до и 1 день -после, на дорогу и заселение, ст кассир приезжает на 1 день раньше тех открытия магазина для проверки готовности касс. \nПрошу сообщить о согласовании командировки данных участников."}]
[]
["ИМЯ ФАЙЛА",{"$f":"Формулы!A52","v":"г. Москва ТЦ Ангара"}]

{"sheet":"Для гр.Старт АП","index":3,"n_rows":1,"n_cols":1,"rows_kept":1,"cut":false,"hidden":false,"merged":[]}
[{"$f":"Формулы!A29","v":"Группа г. Москва\nСбродов Дмитрий - 0 по 0\nСобянин Сергей Александрови - 07.08 по 25.08\nНевсевря Павел Викторович - 0 по 0\nКарпова Екатерина Васильевна - 0 по 0\nГришакова Ольга - 0 по 0\nХрамова Татьяна  - 0 по 0\nШелковникова Татьяна - 0 по 0\nБондаренко Александра - 0 по 0\nКарташова Дарья - 0 по 0\nКрокодилов Сергей - 0 по 0\nФазилов Илхомжон - 0 по 0\nПервая поставка - 06.09\nТехническое открытие - 19.09\nПраздничное открытие - 28.09\nРуководитель проекта - Яковенко Виктор, 8-982-600-0311\nТренер на обьекте - Федосеев Максим, 8-908-909-3147"}]

{"sheet":"Календарник","index":4,"n_rows":36,"n_cols":584,"rows_kept":36,"cut":false,"hidden":false,"merged":[[1,466,1,490],[6,478,6,490],[11,466,11,490],[31,462,31,476],[32,450,32,476],[33,462,33,476],[34,458,34,483],[35,470,35,483],[9,434,9,455],[5,400,5,412],[8,400,8,405],[9,400,9,405],[10,400,10,430],[11,400,11,405],[14,400,14,412],[14,430,14,448],[22,466,22,490],[23,478,23,490],[24,429,24,449],[25,441,25,449],[26,434,26,455],[27,446,27,455],[28,447,28,469],[29,459,29,469],[8,446,8,455],[7,449,7,457],[30,450,30,476],[29,397,29,405],[31,404,31,412],[25,379,25,391],[13,401,13,419],[33,411,33,419],[6,359,6,366],[26,384,26,405],[28,384,28,405],[9,350,9,363],[11,408,11,426],[7,411,7,419],[23,375,23,387],[30,391,30,412],[32,399,32,419],[22,408,22,426],[23,388,23,398],[27,397,27,405],[24,379,24,398],[25,392,25,398],[7,167,7,175],[9,154,9,175],[6,136,6,147],[11,173,11,196],[23,184,23,185],[23,180,23,181],[23,182,23,183],[6,292,6,301],[11,258,11,280],[8,296,8,308],[9,284,9,308],[6,341,6,349],[13,329,13,349],[9,329,9,349],[8,342,8,349],[14,328,14,349],[13,106,13,126],[9,124,9,147],[11,124,11,147],[10,151,10,159],[13,154,13,175],[1,66,1,73],[2,43,2,56],[6,97,6,110],[11,71,11,96],[7,73,7,86],[2,97,2,118],[11,97,11,118],[9,49,9,62],[8,66,8,79],[13,5,13,21],[1,5,1,7],[2,8,2,27],[3,9,3,27],[6,35,6,42],[1,8,1,34],[9,35,9,42],[11,5,11,21],[9,5,9,21],[10,8,10,27],[8,11,8,21],[5,193,5,217],[13,194,13,217],[7,207,7,217],[10,194,10,217],[13,279,13,301],[7,341,7,349],[6,404,6,412],[5,429,5,449],[6,441,6,448]]}
[null,"ФИО","Должность","Город/Магазин","Отпуск 1\nОтпуск 2","2018-06-01","2018-06-02","2018-06-03","2018-06-04","2018-06-05","2018-06-06","2018-06-07","2018-06-08","2018-06-09","2018-06-10","2018-06-11","2018-06-12","2018-06-13","2018-06-14","2018-06-15","2018-06-16","2018-06-17","2018-06-18","2018-06-19","2018-06-20","2018-06-21","2018-06-22","2018-06-23","2018-06-24","2018-06-25","2018-06-26","2018-06-27","2018-06-28","2018-06-29","2018-06-30","2018-07-01","2018-07-02","2018-07-03","2018-07-04","2018-07-05","2018-07-06","2018-07-07","2018-07-08","2018-07-09","2018-07-10","2018-07-11","2018-07-12","2018-07-13","2018-07-14","2018-07-15","2018-07-16","2018-07-17","2018-07-18","2018-07-19","2018-07-20","2018-07-21","2018-07-22","2018-07-23","2018-07-24","2018-07-25","2018-07-26","2018-07-27","2018-07-28","2018-07-29","2018-07-30","2018-07-31","2018-08-01","2018-08-02","2018-08-03","2018-08-04","2018-08-05","2018-08-06","2018-08-07","2018-08-08","2018-08-09","2018-08-10","2018-08-11","2018-08-12","2018-08-13","2018-08-14","2018-08-15","2018-08-16","2018-08-17","2018-08-18","2018-08-19","2018-08-20","2018-08-21","2018-08-22","2018-08-23","2018-08-24","2018-08-25","2018-08-26","2018-08-27","2018-08-28","2018-08-29","2018-08-30","2018-08-31","2018-09-01","2018-09-02","2018-09-03","2018-09-04","2018-09-05","2018-09-06","2018-09-07","2018-09-08","2018-09-09","2018-09-10","2018-09-11","2018-09-12","2018-09-13","2018-09-14","2018-09-15","2018-09-16","2018-09-17","2018-09-18","2018-09-19","2018-09-20","2018-09-21","2018-09-22","2018-09-23","2018-09-24","2018-09-25","2018-09-26","2018-09-27","2018-09-28","2018-09-29","2018-09-30","2018-10-01","2018-10-02","2018-10-03","2018-10-04","2018-10-05","2018-10-06","2018-10-07","2018-10-08","2018-10-09","2018-10-10","2018-10-11","2018-10-12","2018-10-13","2018-10-14","2018-10-15","2018-10-16","2018-10-17","2018-10-18","2018-10-19","2018-10-20","2018-10-21","2018-10-22","2018-10-23","2018-10-24","2018-10-25","2018-10-26","2018-10-27","2018-10-28","2018-10-29","2018-10-30","2018-10-31","2018-11-01","2018-11-02","2018-11-03","2018-11-04","2018-11-05","2018-11-06","2018-11-07","2018-11-08","2018-11-09","2018-11-10","2018-11-11","2018-11-12","2018-11-13","2018-11-14","2018-11-15","2018-11-16","2018-11-17","2018-11-18","2018-11-19","2018-11-20","2018-11-21","2018-11-22","2018-11-23","2018-11-24","2018-11-25","2018-11-26","2018-11-27","2018-11-28","2018-11-29","2018-11-30","2018-12-01","2018-12-02","2018-12-03","2018-12-04","2018-12-05","2018-12-06","2018-12-07","2018-12-08","2018-12-09","2018-12-10","2018-12-11","2018-12-12","2018-12-13","2018-12-14","2018-12-15","2018-12-16","2018-12-17","2018-12-18","2018-12-19","2018-12-20","2018-12-21","2018-12-22","2018-12-23","2018-12-24","2018-12-25","2018-12-26","2018-12-27","2018-12-28","2018-12-29","2018-12-30","2018-12-31","2019-01-01","2019-01-02","2019-01-03","2019-01-04","2019-01-05","2019-01-06","2019-01-07","2019-01-08","2019-01-09","2019-01-10","2019-01-11","2019-01-12","2019-01-13","2019-01-14","2019-01-15","2019-01-16","2019-01-17","2019-01-18","2019-01-19","2019-01-20","2019-01-21","2019-01-22","2019-01-23","2019-01-24","2019-01-25","2019-01-26","2019-01-27","2019-01-28","2019-01-29","2019-01-30","2019-01-31","2019-02-01","2019-02-02","2019-02-03","2019-02-04","2019-02-05","2019-02-06","2019-02-07","2019-02-08","2019-02-09","2019-02-10","2019-02-11","2019-02-12","2019-02-13","2019-02-14","2019-02-15","2019-02-16","2019-02-17","2019-02-18","2019-02-19","2019-02-20","2019-02-21","2019-02-22","2019-02-23","2019-02-24","2019-02-25","2019-02-26","2019-02-27","2019-02-28","2019-03-01","2019-03-02","2019-03-03","2019-03-04","2019-03-05","2019-03-06","2019-03-07","2019-03-08","2019-03-09","2019-03-10","2019-03-11","2019-03-12","2019-03-13","2019-03-14","2019-03-15","2019-03-16","2019-03-17","2019-03-18","2019-03-19","2019-03-20","2019-03-21","2019-03-22","2019-03-23","2019-03-24","2019-03-25","2019-03-26","2019-03-27","2019-03-28","2019-03-29","2019-03-30","2019-03-31","2019-04-01","2019-04-02","2019-04-03","2019-04-04","2019-04-05","2019-04-06","2019-04-07","2019-04-08","2019-04-09","2019-04-10","2019-04-11","2019-04-12","2019-04-13","2019-04-14","2019-04-15","2019-04-16","2019-04-17","2019-04-18","2019-04-19","2019-04-20","2019-04-21","2019-04-22","2019-04-23","2019-04-24","2019-04-25","2019-04-26","2019-04-27","2019-04-28","2019-04-29","2019-04-30","2019-05-01","2019-05-02","2019-05-03","2019-05-04","2019-05-05","2019-05-06","2019-05-07","2019-05-08","2019-05-09","2019-05-10","2019-05-11","2019-05-12","2019-05-13","2019-05-14","2019-05-15","2019-05-16","2019-05-17","2019-05-18","2019-05-19","2019-05-20","2019-05-21","2019-05-22","2019-05-23","2019-05-24","2019-05-25","2019-05-26","2019-05-27","2019-05-28","2019-05-29","2019-05-30","2019-05-31","2019-06-01","2019-06-02","2019-06-03","2019-06-04","2019-06-05","2019-06-06","2019-06-07","2019-06-08","2019-06-09","2019-06-10","2019-06-11","2019-06-12","2019-06-13","2019-06-14","2019-06-15","2019-06-16","2019-06-17","2019-06-18","2019-06-19","2019-06-20","2019-06-21","2019-06-22","2019-06-23","2019-06-24","2019-06-25","2019-06-26","2019-06-27","2019-06-28","2019-06-29","2019-06-30","2019-07-01","2019-07-02","2019-07-03","2019-07-04","2019-07-05","2019-07-06","2019-07-07","2019-07-08","2019-07-09","2019-07-10","2019-07-11","2019-07-12","2019-07-13","2019-07-14","2019-07-15","2019-07-16","2019-07-17","2019-07-18","2019-07-19","2019-07-20","2019-07-21","2019-07-22","2019-07-23","2019-07-24","2019-07-25","2019-07-26","2019-07-27","2019-07-28","2019-07-29","2019-07-30","2019-07-31","2019-08-01","2019-08-02","2019-08-03","2019-08-04","2019-08-05","2019-08-06","2019-08-07","2019-08-08","2019-08-09","2019-08-10","2019-08-11","2019-08-12","2019-08-13","2019-08-14","2019-08-15","2019-08-16","2019-08-17","2019-08-18","2019-08-19","2019-08-20","2019-08-21","2019-08-22","2019-08-23","2019-08-24","2019-08-25","2019-08-26","2019-08-27","2019-08-28","2019-08-29","2019-08-30","2019-08-31","2019-09-01","2019-09-02","2019-09-03","2019-09-04","2019-09-05","2019-09-06","2019-09-07","2019-09-08","2019-09-09","2019-09-10","2019-09-11","2019-09-12","2019-09-13","2019-09-14","2019-09-15","2019-09-16","2019-09-17","2019-09-18","2019-09-19","2019-09-20","2019-09-21","2019-09-22","2019-09-23","2019-09-24","2019-09-25","2019-09-26","2019-09-27","2019-09-28","2019-09-29","2019-09-30","2019-10-01","2019-10-02","2019-10-03","2019-10-04","2019-10-05","2019-10-06","2019-10-07","2019-10-08","2019-10-09","2019-10-10","2019-10-11","2019-10-12","2019-10-13","2019-10-14","2019-10-15","2019-10-16","2019-10-17","2019-10-18","2019-10-19","2019-10-20","2019-10-21","2019-10-22","2019-10-23","2019-10-24","2019-10-25","2019-10-26","2019-10-27","2019-10-28","2019-10-29","2019-10-30","2019-10-31","2019-11-01","2019-11-02","2019-11-03","2019-11-04","2019-11-05","2019-11-06","2019-11-07","2019-11-08","2019-11-09","2019-11-10","2019-11-11","2019-11-12","2019-11-13","2019-11-14","2019-11-15","2019-11-16","2019-11-17","2019-11-18","2019-11-19","2019-11-20","2019-11-21","2019-11-22","2019-11-23","2019-11-24","2019-11-25","2019-11-26","2019-11-27","2019-11-28","2019-11-29","2019-11-30","2019-12-01","2019-12-02","2019-12-03","2019-12-04","2019-12-05","2019-12-06","2019-12-07","2019-12-08","2019-12-09","2019-12-10","2019-12-11","2019-12-12","2019-12-13","2019-12-14","2019-12-15","2019-12-16","2019-12-17","2019-12-18","2019-12-19","2019-12-20","2019-12-21","2019-12-22","2019-12-23","2019-12-24","2019-12-25","2019-12-26","2019-12-27","2019-12-28","2019-12-29","2019-12-30","2019-12-31"]
[1,{"$f":"ДанныеПерсонал!B2","v":"Сбродов Дмитрий"},{"$f":"ДанныеПерсонал!C2","v":"ЗУМ"},{"$f":"ДанныеПерсонал!E2","v":"ЕКБ Оренбург Салмышская"},null,"Барнаул ",null,null,"Обучение Стажера",null,null,null,null,null,null,null,null,null,null,null,null,null,null,null,null,null,null,null,null,null,null,null,null,null,null,null,null,null,null,null,null,null,null,null,null,null,null,null,null,null,null,null,null,null,null,null,null,null,null,null,null,null,null,null,null,null,"ОТПуСК",null,null,null,null,null,null,null,null,null,null,null,null,null,null,null,null,null,null,null,null,null,null,null,null,null,null,null,null,null,null,null,null,null,null,null,null,null,null,null,null,null,null,null,null,null,null,null,null,null,null,null,null,null,null,null,null,null,null,null,null,null,null,null,null,null,null,null,null,null,null,null,null,null,null,null,null,null,null,null,null,null,null,null,null,null,null,null,null,null,null,null,null,null,null,null,null,null,null,null,null,null,null,null,null,null,null,null,null,null,null,null,null,null,null,null,null,null,null,null,null,null,null,null,null,null,null,null,null,null,null,null,null,null,null,null,null,null,null,null,null,null,null,null,null,null,null,null,null,null,null,null,null,null,null,null,null,null,null,null,null,null,null,null,null,null,null,null,null,null,null,null,null,null,null,null,null,null,null,null,null,null,null,null,null,null,null,null,null,null,null,null,null,null,null,null,null,null,null,null,null,null,null,null,null,null,null,null,null,null,null,null,null,null,null,null,null,null,null,null,null,null,null,null,null,null,null,null,null,null,null,null,null,null,null,null,null,null,null,null,null,null,null,null,null,null,null,null,null,null,null,null,null,null,null,null,null,null,null,null,null,null,null,null,null,null,null,null,null,null,null,null,null,null,null,null,null,null,null,null,null,null,null,null,null,null,null,null,null,null,null,null,null,null,null,null,null,null,null,null,null,null,null,null,null,null,null,null,null,null,null,null,null,null,null,null,null,null,null,null,null,null,null,null,null,null,null,null,null,null,null,null,null,null,null,null,null,null,null,null,null,null,null,null,null,null,null,null,null,null,null,null,null,null,null,null,null,null,null,null,null,null,null,null,null,null,null,null,null,null,null,null,null,null,null,null,null,null,null,null,null,null,null,null,null,null,null,null,null,null,null,null,null,null,null,null,null,null,null,null,"Москва ТЦ Ангара"]
[2,{"$f":"ДанныеПерсонал!B3","v":"Собянин Сергей Александрови"},{"$f":"ДанныеПерсонал!C3","v":"ЗУМ"},{"$f":"ДанныеПерсонал!E3","v":"ЕКБ Екат Космонавтов Белка"},null,null,null,null,"Пермь ТЦ Земляника",null,null,null,null,null,null,null,null,null,null,null,null,null,null,null,null,null,null,null,null,null,null,null,null,null,null,null,null,null,null,null,null,null,null,"ОТПУСК",null,null,null,null,null,null,null,null,null,null,null,null,null,null,null,null,null,null,null,null,null,null,null,null,null,null,null,null,null,null,null,null,null,null,null,null,null,null,null,null,null,null,null,null,null,null,null,null,null,null,null,null,null,"Орск ТЦ Универмаг"]
[3,{"$f":"ДанныеПерсонал!B4","v":"Невсевря Павел Викторович"},{"$f":"ДанныеПерсонал!C4","v":"ЗУМ"},{"$f":"ДанныеПерсонал!E4","v":"ЕКБ Самара Вива Лэнд"},null,null,null,null,null,"Пермь ТЦ Земляника",null,null,null,null,null,null,null,null,null,null,null,null,null,null,null,null,null,null,null,null,null,null,null,null,null,null,null,null,null,"ОТПУСК ЗА СВОЙ СЧЕТ"]
[null,{"$f":"ДанныеПерсонал!B5","v":"Карпова Екатерина Васильевна"},{"$f":"ДанныеПерсонал!C5","v":"ЗУМ "},{"$f":"ДанныеПерсонал!E5","v":"ЕКБ Саратов ТЦ Хэппи Молл"},null,null,null,null,null,null,null,null,null,null,null,null,null,null,null,null,null,null,null,null,null,null,null,null,null,null,null,null,null,null,null,null,null,null,null,null,null,null,null,null,null,null,null,null,null,null,null,null,null,null,null,null,null,null,null,null,null,null,null,null,null,null,null,null,null,null,null,null,null,null,null,null,null,null,null,null,null,null,null,null,null,null,null,null,null,null,null,null,null,null,null,null,null,null,null,null,null,null,null,null,null,null,null,null,null,null,null,null,null,null,null,null,null,null,null,null,null,null,null,null,null,null,null,null,null,null,null,null,null,null,null,null,null,null,null,null,null,null,null,null,null,null,null,null,null,null,null,null,null,null,null,null,null,null,null,null,null,null,null,null,null,null,null,null,null,null,null,null,null,null,null,null,null,null,null,null,null,null,null,null,null,null,null,null,null,null,null,null,null,null,null,null,null,null,null,null,null,null,null,null,null,null,null,null,null,null,null,null,null,null,null,null,null,null,null,null,null,null,null,null,null,null,null,null,null,null,null,null,null,null,null,null,null,null,null,null,null,null,null,null,null,null,null,null,null,null,null,null,null,null,null,null,null,null,null,null,null,null,null,null,null,null,null,null,null,null,null,null,null,null,null,null,null,null,null,null,null,null,null,null,null,null,null,null,null,null,null,null,null,null,null,null,null,null,null,null,null,null,null,null,null,null,null,null,null,null,null,null,null,null,null,null,null,null,null,null,null,null,null,null,null,null,null,null,null,null,null,null,null,null,null,null,null,null,null,null,null,null,null,null,null,null,null,null,null,null,null,null,null,null,null,null,null,null,null,null,null,null,null,null,null,null,null,null,null,null,"Исключен из старт апа"]
[null,{"$f":"ДанныеПерсонал!B6","v":"Гришакова Ольга"},{"$f":"ДанныеПерсонал!C6","v":"ЗУМ "},{"$f":"ДанныеПерсонал!E6","v":"ЕКБ Челябинск Героев Танкограда"},null,null,null,null,null,null,null,null,null,null,null,null,null,null,null,null,null,null,null,null,null,null,null,null,null,null,null,null,null,null,null,null,null,null,null,null,null,null,null,null,null,null,null,null,null,null,null,null,null,null,null,null,null,null,null,null,null,null,null,null,null,null,null,null,null,null,null,null,null,null,null,null,null,null,null,null,null,null,null,null,null,null,null,null,null,null,null,null,null,null,null,null,null,null,null,null,null,null,null,null,null,null,null,null,null,null,null,null,null,null,null,null,null,null,null,null,null,null,null,null,null,null,null,null,null,null,null,null,null,null,null,null,null,null,null,null,null,null,null,null,null,null,null,null,null,null,null,null,null,null,null,null,null,null,null,null,null,null,null,null,null,null,null,null,null,null,null,null,null,null,null,null,null,null,null,null,null,null,null,null,null,null,null,null,null,null,null,null,null,"Бузулук (едет как кладовщик)",null,null,null,null,null,null,null,null,null,null,null,null,null,null,null,null,null,null,null,null,null,null,null,null,null,null,null,null,null,null,null,null,null,null,null,null,null,null,null,null,null,null,null,null,null,null,null,null,null,null,null,null,null,null,null,null,null,null,null,null,null,null,null,null,null,null,null,null,null,null,null,null,null,null,null,null,null,null,null,null,null,null,null,null,null,null,null,null,null,null,null,null,null,null,null,null,null,null,null,null,null,null,null,null,null,null,null,null,null,null,null,null,null,null,null,null,null,null,null,null,null,null,null,null,null,null,null,null,null,null,null,null,null,null,null,null,null,null,null,null,null,null,null,null,null,null,null,9,8,7,6,5,4,3,2,1,null,null,null,null,null,null,null,null,null,null,null,null,null,null,null,null,null,null,null,null,null,"ОТПУСК",null,null,null,null,null,null,null,null,null,null,null,null,null,null,null,null,null,null,null,"Бердск Меркурий",null,null,null,null,null,null,null,null,null,null,null,null,null,null,null,null,null,null,null,null,null,null,null,null,null,null,null,null,null,null,null,null,null,null,null,null,null,"Кемерово пр.Октябрьский"]
[4,{"$f":"ДанныеПерсонал!B7","v":"Храмова Татьяна "},{"$f":"ДанныеПерсонал!C7","v":"Ст кассир"},{"$f":"ДанныеПерсонал!E7","v":"ЕКБ Белинского"},null,null,null,null,null,null,null,null,null,null,null,null,null,null,null,null,null,null,null,null,null,null,null,null,null,null,null,null,null,null,null,"Новокузнецк ТЦ Парус",null,null,null,null,null,null,null,null,null,null,null,null,null,null,null,null,null,null,null,null,null,null,null,null,null,null,null,null,null,null,null,null,null,null,null,null,null,null,null,null,null,null,null,null,null,null,null,null,null,null,null,null,null,null,null,null,null,null,null,null,null,"ОТПУСК",null,null,null,null,null,null,null,null,null,null,null,null,null,null,null,null,null,null,null,null,null,null,null,null,null,null,null,null,null,null,null,null,null,null,null,null,null,null,"Урай",null,null,null,null,null,null,null,null,null,null,null,null,null,null,null,null,null,null,null,null,null,null,null,null,null,null,null,null,null,null,null,null,null,null,null,null,null,null,null,null,null,null,null,null,null,null,null,null,null,null,null,null,null,null,null,null,null,null,null,null,null,null,null,null,null,null,null,null,null,null,null,null,null,null,null,null,null,null,null,null,null,null,null,null,null,null,null,null,null,null,null,null,null,null,null,null,null,null,null,null,null,null,null,null,null,null,null,null,null,null,null,null,null,null,null,null,null,null,null,null,null,null,null,null,null,null,null,null,null,null,null,null,null,null,null,null,null,null,null,null,null,null,null,null,null,null,null,null,null,null,null,null,null,null,null,"Иркустк 2",null,null,null,null,null,null,null,null,null,null,null,null,null,null,null,null,null,null,null,null,null,null,null,null,null,null,null,null,null,null,null,null,null,null,null,null,null,null,null,null,null,null,null,null,null,null,null,null,"Искитим",null,null,null,null,null,null,null,null,null,null,null,null,null,null,null,null,null,"ОТПУСК",null,null,null,null,null,null,null,null,null,null,null,null,null,null,null,null,null,null,null,null,null,null,null,null,null,null,null,null,null,null,null,null,"Самара ТЦ Мир",null,null,null,null,null,null,null,null,null,null,null,"Бердск Меркурий",null,null,null,null,null,null,null,null,null,null,null,null,null,null,null,null,null,null,null,null,null,null,null,null,null,null,null,null,null,null,null,null,null,null,null,null,"Кемерово пр.Октябрьский",null,null,null,null,null,null,null,null,null,null,null,null,null,null,null,null,null,null,null,null,null,null,null,null,null,null,null,null,null,null,null,null,null,null,null,null,"Москва ТЦ Ангара"]
[5,{"$f":"ДанныеПерсонал!B8","v":"Шелковникова Татьяна"},{"$f":"ДанныеПерсонал!C8","v":"Ст кассир"},{"$f":"ДанныеПерсонал!E8","v":"МСК Раменское"},null,null,null,null,null,null,null,null,null,null,null,null,null,null,null,null,null,null,null,null,null,null,null,null,null,null,null,null,null,null,null,null,null,null,null,null,null,null,null,null,null,null,null,null,null,null,null,null,null,null,null,null,null,null,null,null,null,null,null,null,null,null,null,null,null,null,null,null,null,"ОТПУСК",null,null,null,null,null,null,null,null,null,null,null,null,null,null,null,null,null,null,null,null,null,null,null,null,null,null,null,null,null,null,null,null,null,null,null,null,null,null,null,null,null,null,null,null,null,null,null,null,null,null,null,null,null,null,null,null,null,null,null,null,null,null,null,null,null,null,null,null,null,null,null,null,null,null,null,null,null,null,null,null,null,null,null,null,null,null,null,null,null,null,null,null,null,"Сыктывкар",null,null,null,null,null,null,null,null,null,null,null,null,null,null,null,null,null,null,null,null,null,null,null,null,null,null,null,null,null,null,null,null,null,null,null,null,null,null,null,"Барнаул",null,null,null,null,null,null,null,null,null,null,null,null,null,null,null,null,null,null,null,null,null,null,null,null,null,null,null,null,null,null,null,null,null,null,null,null,null,null,null,null,null,null,null,null,null,null,null,null,null,null,null,null,null,null,null,null,null,null,null,null,null,null,null,null,null,null,null,null,null,null,null,null,null,null,null,null,null,null,null,null,null,null,null,null,null,null,null,null,null,null,null,null,null,null,null,null,null,null,null,null,null,null,null,null,null,null,null,null,null,null,null,null,null,null,null,null,null,null,null,null,null,null,null,null,null,null,null,null,null,null,null,null,null,"ОТПУСК",null,null,null,null,null,null,null,null,null,null,null,null,null,null,null,null,null,null,null,null,null,null,null,null,null,null,null,null,null,null,null,null,null,null,null,null,null,null,null,null,null,null,null,null,null,null,null,null,null,null,null,null,null,null,null,null,null,null,null,null,null,null,null,null,null,null,null,null,null,"Калуга ТЦ Семейный",null,null,null,null,null,null,null,null,null,null,null,null,null,null,null,null,null,null,null,null,null,null,null,null,null,null,null,null,null,null,null,null,null,null,null,null,null,"ОТПУСК"]
[6,{"$f":"ДанныеПерсонал!B9","v":"Бондаренко Александра"},{"$f":"ДанныеПерсонал!C9","v":"Ст кассир"},{"$f":"ДанныеПерсонал!E9","v":"ЕКБ Гранат"},null,null,null,null,null,null,null,"Саратов ТЦ Сити-Молл",null,null,null,null,null,null,null,null,null,null,null,null,null,null,null,null,null,null,null,null,null,null,null,null,null,null,null,null,null,null,null,null,null,null,null,null,null,null,null,null,null,null,null,null,null,null,null,null,null,null,null,null,null,null,"ОТПУСК",null,null,null,null,null,null,null,null,null,null,null,null,null,null,null,null,null,null,null,null,null,null,null,null,null,null,null,null,null,null,null,null,null,null,null,null,null,null,null,null,null,null,null,null,null,null,null,null,null,null,null,null,null,null,null,null,null,null,null,null,null,null,null,null,null,null,null,null,null,null,null,null,null,null,null,null,null,null,null,null,null,null,null,null,null,null,null,null,null,null,null,null,null,null,null,null,null,null,null,null,null,null,null,null,null,null,null,null,null,null,null,null,null,null,null,null,null,null,null,null,null,null,null,null,null,null,null,null,null,null,null,null,null,null,null,null,null,null,null,null,null,null,null,null,null,null,null,null,null,null,null,null,null,null,null,null,null,null,null,null,null,null,null,null,null,null,null,null,null,null,null,null,null,null,null,null,null,null,null,null,null,null,null,null,null,null,null,null,null,null,null,null,null,null,null,null,null,null,null,null,null,null,null,null,null,null,null,null,null,null,null,null,null,null,null,null,null,null,null,null,null,null,null,null,null,null,null,null,null,"Барнаул 2",null,null,null,null,null,null,null,null,null,null,null,null,null,null,null,null,null,null,null,null,null,null,null,null,null,null,null,null,null,null,null,null,null,null,null,null,null,null,null,null,null,null,null,null,null,"НСК Тетрис",null,null,null,null,null,null,null,null,null,null,null,null,null,null,null,null,null,null,null,null,null,null,null,null,null,null,null,null,null,null,null,null,null,null,null,null,null,null,null,null,null,null,null,null,null,null,null,null,null,null,null,null,null,null,"Балаково Оранж",null,null,null,null,null,null,null,null,null,null,null,null,null,null,null,null,null,null,null,null,null,null,null,"Балаково ТЦ Грин Хаус",null,null,null,null,null,null,null,null,null,null,null,null,null,null,null,null,null,null,null,null,null,null,null,null,"Барнаул ТЦ Район"]
[7,{"$f":"ДанныеПерсонал!B10","v":"Карташова Дарья"},{"$f":"ДанныеПерсонал!C10","v":"Ст. кассир"},{"$f":"ДанныеПерсонал!E10","v":"ЕКБ Самара ТЦ Мир"},null,"Саратов ТЦ Сити-Молл",null,null,null,null,null,null,null,null,null,null,null,null,null,null,null,null,null,null,null,null,null,null,null,null,null,null,null,null,null,"Новокузнецк ТЦ Парус",null,null,null,null,null,null,null,null,null,null,null,null,null,"ОТПУСК",null,null,null,null,null,null,null,null,null,null,null,null,null,null,null,null,null,null,null,null,null,null,null,null,null,null,null,null,null,null,null,null,null,null,null,null,null,null,null,null,null,null,null,null,null,null,null,null,null,null,null,null,null,null,null,null,null,null,null,null,null,null,null,null,null,null,null,null,null,null,null,null,null,null,"Урай",null,null,null,null,null,null,null,null,null,null,null,null,null,null,null,null,null,null,null,null,null,null,null,null,null,null,null,null,null,"Сыктывкар",null,null,null,null,null,null,null,null,null,null,null,null,null,null,null,null,null,null,null,null,null,null,null,null,null,null,null,null,null,null,null,null,null,null,null,null,null,null,null,null,null,null,null,null,null,null,null,null,null,null,null,null,null,null,null,null,null,null,null,null,null,null,null,null,null,null,null,null,null,null,null,null,null,null,null,null,null,null,null,null,null,null,null,null,null,null,null,null,null,null,null,null,null,null,null,null,null,null,null,null,null,null,null,null,null,null,null,null,null,null,null,null,null,null,null,null,null,null,null,null,null,null,null,null,null,null,null,null,null,"Барнаул 2",null,null,null,null,null,null,null,null,null,null,null,null,null,null,null,null,null,null,null,null,null,null,null,null,null,null,null,null,null,null,null,null,null,null,null,null,null,null,null,null,null,null,null,null,"НСК Тетрис",null,null,null,null,null,null,null,null,null,null,null,null,null,null,null,null,null,null,null,null,"ОТПУСК",null,null,null,null,null,null,null,null,null,null,null,null,null,null,null,null,null,null,null,null,null,null,null,null,null,null,null,null,null,null,null,null,null,"Балаково Оранж",null,null,null,null,null,null,null,null,null,null,null,null,null,null,null,null,null,null,null,null,null,null,null,"Балаково ТЦ Грин Хаус",null,null,null,null,null,null,null,null,null,null,null,null,null,null,null,null,null,null,null,null,null,null,null,null,null,"Барнаул ТЦ Район"]
[8,{"$f":"ДанныеПерсонал!B11","v":"Крокодилов Сергей"},{"$f":"ДанныеПерсонал!C11","v":"Продавец-кассир"},{"$f":"ДанныеПерсонал!E11","v":"ЕКБ Гранат"},null,null,null,null,"Пермь ТЦ Земляника",null,null,null,null,null,null,null,null,null,null,null,null,null,null,null,null,null,null,null,null,null,null,null,null,null,null,null,null,null,null,null,null,null,null,null,null,null,null,null,null,null,null,null,null,null,null,null,null,null,null,null,null,null,null,null,null,null,null,null,null,null,null,null,null,null,null,null,null,null,null,null,null,null,null,null,null,null,null,null,null,null,null,null,null,null,null,null,null,null,null,null,null,null,null,null,null,null,null,null,null,null,null,null,null,null,null,null,null,null,null,null,null,null,null,null,null,null,null,null,null,null,null,null,null,null,null,null,null,null,null,null,null,null,null,null,null,null,null,null,null,null,null,"ОТПУСК",null,null,null,null,null,null,null,null,null,null,null,null,null,null,null,null,null,null,null,null,null,null,null,null,null,null,null,null,null,null,null,null,null,null,null,null,null,null,null,null,null,null,"Барнаул",null,null,null,null,null,null,null,null,null,null,null,null,null,null,null,null,null,null,null,null,null,null,null,null,null,null,null,null,null,null,null,null,null,null,null,null,null,null,null,null,null,null,null,null,null,null,null,null,null,null,null,null,null,null,null,null,null,null,null,null,null,null,null,null,null,null,null,null,null,null,null,null,null,null,null,null,null,null,null,null,null,null,null,null,null,null,null,null,null,null,null,null,null,null,null,null,null,null,null,null,null,null,null,null,null,null,null,null,null,null,null,null,null,null,null,null,null,null,null,null,null,null,null,null,null,null,null,null,null,null,null,null,null,null,null,null,null,null,null,null,null,null,null,null,null,null,null,null,null,null,null,null,null,null,null,null,null,null,null,null,null,null,null,null,null,null,null,null,null,null,null,null,null,null,"Горно Алтайск ТЦ Западный",null,null,null,null,null,null,null,null,null,null,null,null,null,null,"Переезд В Новый Уренгой"]
[9,{"$f":"ДанныеПерсонал!B12","v":"Фазилов Илхомжон"},{"$f":"ДанныеПерсонал!C12","v":"Ст.кладовщик"},{"$f":"ДанныеПерсонал!E12","v":"ЕКБ Грибоедова"},null,"Саратов ТЦ Сити-Молл",null,null,null,null,null,null,null,null,null,null,null,null,null,null,null,null,null,null,null,null,null,null,null,null,null,null,null,null,null,null,null,null,null,null,null,null,null,null,null,null,null,null,null,null,null,null,null,null,null,null,null,null,null,null,null,null,null,null,null,null,null,null,null,null,null,"ОТПУСК",null,null,null,null,null,null,null,null,null,null,null,null,null,null,null,null,null,null,null,null,null,null,null,null,null,"Орск Универмаг",null,null,null,null,null,null,null,null,null,null,null,null,null,null,null,null,null,null,null,null,null,null,null,null,null,null,"Урай",null,null,null,null,null,null,null,null,null,null,null,null,null,null,null,null,null,null,null,null,null,null,null,null,null,null,null,null,null,null,null,null,null,null,null,null,null,null,null,null,null,null,null,null,null,null,null,null,"Саратов",null,null,null,null,null,null,null,null,null,null,null,null,null,null,null,null,null,null,null,null,null,null,null,null,null,null,null,null,null,null,null,null,null,null,null,null,null,null,null,null,null,null,null,null,null,null,null,null,null,null,null,null,null,null,null,null,null,null,null,null,null,null,null,null,null,null,null,null,null,null,null,null,null,null,null,null,null,null,null,null,null,null,null,null,"Энегльс ТЦ Лидер",null,null,null,null,null,null,null,null,null,null,null,null,null,null,null,null,null,null,null,null,null,null,null,null,null,null,null,null,null,null,null,null,null,null,null,null,null,null,null,null,null,null,null,null,null,null,null,null,null,null,null,null,null,null,null,null,null,null,null,null,null,null,null,null,null,null,null,null,null,null,null,null,null,null,null,null,null,null,null,null,null,null,null,null,null,null,null,null,null,null,null,null,null,null,null,null,null,null,null,null,null,null,null,null,null,null,null,null,null,null,null,null,null,null,null,null,null,null,null,null,null,null,null,null,null,"Балаково Оранж",null,null,null,null,null,null,null,null,null,null,null,null,null,null,null,null,null,null,null,null,null,null,null,"Балаково ТЦ Грин Хаус",null,null,null,null,null,null,null,null,null,null,null,null,null,null,null,null,null,null,null,null,null,null,null,null,null,null,null,null,null,null,null,null,null,null,null,null,null,null,null,null,null,null,null,null,null,null,null,null,null,null,null,null,null,null,null,null,null,"Москва ТЦ Ангара"]
[10,{"$f":"ДанныеПерсонал!B13","v":"Афанасьев Кирилл"},{"$f":"ДанныеПерсонал!C13","v":"Ст.кладовщик"},{"$f":"ДанныеПерсонал!E13","v":"ЕКБ Краснолесье"}]
[11,{"$f":"ДанныеПерсонал!B14","v":"Астафьев Василий Павлович"},{"$f":"ДанныеПерсонал!C14","v":"Ст. кладовщик"},{"$f":"ДанныеПерсонал!E14","v":"ЕКБ Екат Дирижабль"},null,"Новокузнецк ТЦ Сити-Молл",null,null,null,null,null,null,null,null,null,null,null,null,null,null,null,null,null,null,null,null,null,null,null,null,null,null,null,null,null,null,null,null,null,null,null,null,null,null,null,null,null,null,null,null,null,null,null,null,null,null,null,null,null,null,null,null,null,null,null,null,null,null,null,null,null,null,null,null,null,null,null,null,null,null,null,null,null,null,null,null,null,null,null,null,null,null,null,null,null,null,null,null,null,null,null,null,null,null,null,null,"ОТПУСК",null,null,null,null,null,null,null,null,null,null,null,null,null,null,null,null,null,null,null,null,null,null,null,null,null,null,null,null,null,null,null,null,null,null,null,null,null,null,null,null,null,null,null,null,null,null,null,"Сыктывкар",null,null,null,null,null,null,null,null,null,null,null,null,null,null,null,null,null,null,null,null,null,null,null,null,null,null,null,null,null,null,null,null,null,null,null,null,null,null,null,"Барнаул",null,null,null,null,null,null,null,null,null,null,null,null,null,null,null,null,null,null,null,null,null,null,null,null,null,null,null,null,null,null,null,null,null,null,null,null,null,null,null,null,null,null,null,null,null,null,null,null,null,null,null,null,null,null,null,null,null,null,null,null,null,null,null,null,null,null,null,null,null,null,null,null,null,null,null,null,null,null,null,null,null,null,null,null,"Иркутск 2",null,null,null,null,null,null,null,null,null,null,null,null,null,null,null,null,null,null,null,null,null,null,null,null,null,null,null,null,null,null,null,null,null,null,null,null,null,null,null,null,null,null,null,null,null,null,null,null,null,"НСК Тетрис",null,null,null,null,null,null,null,null,null,null,null,null,null,null,null,null,null,null,null,null,null,null,null,null,null,null,null,null,null,null,null,null,null,null,null,null,null,null,null,null,null,null,null,null,null,null,null,null,null,"Самара ТЦ Мир",null,null,null,null,null,null,null,null,null,null,null,null,null,null,null,null,null,null,null,null,null,"Калуга ТЦ Семейный"]
[null,{"$f":"ДанныеПерсонал!B15","v":"Дабрундашвили Ираклий Рамазович"},{"$f":"ДанныеПерсонал!C15","v":"Ст. кладовщик"},{"$f":"ДанныеПерсонал!E15","v":"ЕКБ Екат Мамина-Сибиряка"},null,null,null,null,null,null,null,null,null,null,null,null,null,null,null,null,null,null,null,null,null,null,null,null,null,null,null,null,null,null,null,null,null,null,null,null,null,null,null,null,null,null,null,null,null,null,null,null,null,null,null,null,null,null,null,null,null,null,null,null,null,null,null,null,null,null,null,null,null,null,null,null,null,null,null,null,null,null,null,null,null,null,null,null,null,null,null,null,null,null,null,null,null,null,null,null,null,null,null,null,null,null,null,null,null,null,null,null,null,null,null,null,null,null,null,null,null,null,null,null,null,null,null,null,null,null,null,null,null,null,null,null,null,null,null,null,null,null,null,null,null,null,null,null,null,null,null,null,null,null,null,null,null,null,null,null,null,null,null,null,null,null,null,null,null,null,null,null,null,null,null,null,null,null,null,null,null,null,null,null,null,null,null,null,null,null,null,null,null,null,null,null,null,null,null,null,null,null,null,null,null,null,null,null,null,null,null,null,null,null,null,null,null,null,null,null,null,null,null,null,null,null,null,null,null,null,null,null,null,null,null,null,null,null,null,null,null,null,null,null,null,null,null,null,null,null,null,null,null,null,null,null,null,null,null,null,null,null,null,null,null,null,null,null,null,null,null,null,null,null,null,null,null,null,null,null,null,null,null,null,null,null,null,null,null,null,null,null,null,null,null,null,null,null,null,null,null,null,null,null,null,null,null,null,null,null,null,null,null,null,null,null,null,null,null,null,null,null,null,null,null,null,null,null,"Искитим",null,null,null,null,null,null,null,null,null,null,null,null,null,null,null,null,null,null,null,null,null,null,null,null,null,null,null,null,null,null,null,null,null,null,null,null,null,null,null,null,"Горно Алтайск ТЦ Западный",null,null,null,null,null,null,null,null,null,null,null,null,null,null,null,null,null,null,null,null,null,"Бердск Меркурий",null,null,null,null,null,null,null,null,null,null,null,null,null,null,null,null,null,null,null,null,null,null,null,null,null,null,null,null,null,null,null,null,null,null,null,null,null,null,"Кемерово пр.Октябрьский"]
[null,{"$f":"ДанныеПерсонал!B16","v":"Грачев Игорь"},{"$f":"ДанныеПерсонал!C16","v":"Кладовщик"},{"$f":"ДанныеПерсонал!E16","v":"МСК Мытищи ТЦ Красный кит"}]
[null,{"$f":"ДанныеПерсонал!B17","v":0},{"$f":"ДанныеПерсонал!C17","v":0},{"$f":"ДанныеПерсонал!E17","v":0}]
[null,{"$f":"ДанныеПерсонал!B18","v":0},{"$f":"ДанныеПерсонал!C18","v":0},{"$f":"ДанныеПерсонал!E18","v":0}]
[null,{"$f":"ДанныеПерсонал!B19","v":0},{"$f":"ДанныеПерсонал!C19","v":0},{"$f":"ДанныеПерсонал!E19","v":0}]
[null,{"$f":"ДанныеПерсонал!B20","v":0},{"$f":"ДанныеПерсонал!C20","v":0},{"$f":"ДанныеПерсонал!E20","v":0}]
[]
[]
[null,null,null,null,null,null,null,null,null,null,null,null,null,null,null,null,null,null,null,null,null,null,null,null,null,null,null,null,null,null,null,null,null,null,null,null,null,null,null,null,null,null,null,null,null,null,null,null,null,null,null,null,null,null,null,null,null,null,null,null,null,null,null,null,null,null,null,null,null,null,null,null,null,null,null,null,null,null,null,null,null,null,null,null,null,null,null,null,null,null,null,null,null,null,null,null,null,null,null,null,null,null,null,null,null,null,null,null,null,null,null,null,null,null,null,null,null,null,null,null,null,null,null,null,null,null,null,null,null,null,null,null,null,null,null,null,null,null,null,null,null,null,null,null,null,null,null,null,null,null,null,null,null,null,null,null,null,null,null,null,null,null,null,null,null,null,null,null,null,null,null,null,null,null,null,null,null,null,null,null,null,null,null,null,null,null,null,null,null,null,null,null,null,null,null,null,null,null,null,null,null,null,null,null,null,null,null,null,null,null,null,null,null,null,null,null,null,null,null,null,null,null,null,null,null,null,null,null,null,null,null,null,null,null,null,null,null,null,null,null,null,null,null,null,null,null,null,null,null,null,null,null,null,null,null,null,null,null,null,null,null,null,null,null,null,null,null,null,null,null,null,null,null,null,null,null,null,null,null,null,null,null,null,null,null,null,null,null,null,null,null,null,null,null,null,null,null,null,null,null,null,null,null,null,null,null,null,null,null,null,null,null,null,null,null,null,null,null,null,null,null,null,null,null,null,null,null,null,null,null,null,null,null,null,null,null,null,null,null,null,null,null,null,null,null,null,null,null,null,null,null,null,null,null,null,null,null,null,null,null,null,null,null,null,null,null,null,null,null,null,null,null,null,null,null,"НСК Новосибирская",null,null,null,null,null,null,null,null,null,null,null,null,null,null,null,null,null,null,null,null,null,null,null,null,null,null,null,null,null,null,null,2,"Балаково ТЦ Грин Хаус",null,null,null,null,null,null,null,null,null,null,null,null,null,null,null,null,null,null,null,null,null,null,null,null,null,null,null,null,null,null,null,null,null,null,null,null,null,null,null,null,null,null,null,null,null,null,null,null,null,null,null,null,null,null,null,null,null,"Москва ТЦ Ангара"]
[null,null,null,null,null,null,null,null,null,null,null,null,null,null,null,null,null,null,null,null,null,null,null,null,null,null,null,null,null,null,null,null,null,null,null,null,null,null,null,null,null,null,null,null,null,null,null,null,null,null,null,null,null,null,null,null,null,null,null,null,null,null,null,null,null,null,null,null,null,null,null,null,null,null,null,null,null,null,null,null,null,null,null,null,null,null,null,null,null,null,null,null,null,null,null,null,null,null,null,null,null,null,null,null,null,null,null,null,null,null,null,null,null,null,null,null,null,null,null,null,null,null,null,null,null,null,null,null,null,null,null,null,null,null,null,null,null,null,null,null,null,null,null,null,null,null,null,null,null,null,null,null,null,null,null,null,null,null,null,null,null,null,null,null,null,null,null,null,null,null,null,null,null,null,null,null,null,null,null,null,null,null,null,null,null,null,null,null,null,null,null,null,null,null,null,null,null,null,null,null,null,null,null,null,null,null,null,null,null,null,null,null,null,null,null,null,null,null,null,null,null,null,null,null,null,null,null,null,null,null,null,null,null,null,null,null,null,null,null,null,null,null,null,null,null,null,null,null,null,null,null,null,null,null,null,null,null,null,null,null,null,null,null,null,null,null,null,null,null,null,null,null,null,null,null,null,null,null,null,null,null,null,null,null,null,null,null,null,null,null,null,null,null,null,null,null,null,null,null,null,null,null,null,null,null,null,null,null,null,null,null,null,null,null,null,null,null,null,null,null,null,null,null,null,null,null,null,null,null,null,null,null,null,null,null,null,null,null,null,null,null,null,null,null,null,null,null,null,null,null,null,null,null,null,null,null,null,null,null,null,null,null,null,null,null,null,null,null,null,null,null,null,null,null,null,"Старт АП ищут сами",null,null,null,null,null,null,null,null,null,null,null,null,"НСК Новосибирская",null,null,null,null,null,null,null,null,null,null,null,null,null,null,null,null,null,null,null,null,null,null,null,null,null,null,null,null,null,null,null,1,"Балаково ТЦ Грин Хаус",null,null,null,null,null,null,null,null,null,null,null,null,null,null,null,null,null,null,null,null,null,null,null,null,null,null,null,null,null,null,null,null,null,null,null,null,null,null,null,null,null,null,null,null,null,null,null,null,null,null,null,null,null,null,null,null,"Москва ТЦ Ангара"]
[null,null,null,null,null,null,null,null,null,null,null,null,null,null,null,null,null,null,null,null,null,null,null,null,null,null,null,null,null,null,null,null,null,null,null,null,null,null,null,null,null,null,null,null,null,null,null,null,null,null,null,null,null,null,null,null,null,null,null,null,null,null,null,null,null,null,null,null,null,null,null,null,null,null,null,null,null,null,null,null,null,null,null,null,null,null,null,null,null,null,null,null,null,null,null,null,null,null,null,null,null,null,null,null,null,null,null,null,null,null,null,null,null,null,null,null,null,null,null,null,null,null,null,null,null,null,null,null,null,null,null,null,null,null,null,null,null,null,null,null,null,null,null,null,null,null,null,null,null,null,null,null,null,null,null,null,null,null,null,null,null,null,null,null,null,null,null,null,null,null,null,null,null,null,null,null,null,null,null,null,null,null,null,null,null,null,null,null,null,null,null,null,null,null,null,null,null,null,null,null,null,null,null,null,null,null,null,null,null,null,null,null,null,null,null,null,null,null,null,null,null,null,null,null,null,null,null,null,null,null,null,null,null,null,null,null,null,null,null,null,null,null,null,null,null,null,null,null,null,null,null,null,null,null,null,null,null,null,null,null,null,null,null,null,null,null,null,null,null,null,null,null,null,null,null,null,null,null,null,null,null,null,null,null,null,null,null,null,null,null,null,null,null,null,null,null,null,null,null,null,null,null,null,null,null,null,null,null,null,null,null,null,null,null,null,null,null,null,null,null,null,null,null,null,null,null,null,null,null,null,null,null,null,null,null,null,null,null,null,null,null,null,null,null,null,null,null,null,null,null,null,null,null,null,null,null,null,null,null,null,null,null,null,null,null,null,null,null,null,null,null,null,null,null,null,null,null,null,null,"Самара ТЦ Мир",null,null,null,null,null,null,null,null,null,null,null,null,null,null,null,null,null,null,null,null,null,null,null,null,null,null,null,null,null,null,null,null,null,null,null,null,null,null,null,null,null,null,null,null,null,null,null,null,2,"Кемерово пр.Октябрьский"]
[null,null,null,null,null,null,null,null,null,null,null,null,null,null,null,null,null,null,null,null,null,null,null,null,null,null,null,null,null,null,null,null,null,null,null,null,null,null,null,null,null,null,null,null,null,null,null,null,null,null,null,null,null,null,null,null,null,null,null,null,null,null,null,null,null,null,null,null,null,null,null,null,null,null,null,null,null,null,null,null,null,null,null,null,null,null,null,null,null,null,null,null,null,null,null,null,null,null,null,null,null,null,null,null,null,null,null,null,null,null,null,null,null,null,null,null,null,null,null,null,null,null,null,null,null,null,null,null,null,null,null,null,null,null,null,null,null,null,null,null,null,null,null,null,null,null,null,null,null,null,null,null,null,null,null,null,null,null,null,null,null,null,null,null,null,null,null,null,null,null,null,null,null,null,null,null,null,null,null,null,null,null,null,null,null,null,null,null,null,null,null,null,null,null,null,null,null,null,null,null,null,null,null,null,null,null,null,null,null,null,null,null,null,null,null,null,null,null,null,null,null,null,null,null,null,null,null,null,null,null,null,null,null,null,null,null,null,null,null,null,null,null,null,null,null,null,null,null,null,null,null,null,null,null,null,null,null,null,null,null,null,null,null,null,null,null,null,null,null,null,null,null,null,null,null,null,null,null,null,null,null,null,null,null,null,null,null,null,null,null,null,null,null,null,null,null,null,null,null,null,null,null,null,null,null,null,null,null,null,null,null,null,null,null,null,null,null,null,null,null,null,null,null,null,null,null,null,null,null,null,null,null,null,null,null,null,null,null,null,null,null,null,null,null,null,null,null,null,null,null,null,null,null,null,null,null,null,null,null,null,null,null,null,null,null,null,null,null,null,null,null,null,null,null,null,null,null,null,null,"Зума ищут сами",null,null,null,null,null,null,null,null,null,null,null,null,"Самара ТЦ Мир",null,null,null,null,null,null,null,null,null,null,null,null,null,null,null,null,null,null,null,null,null,null,null,null,null,null,null,null,null,null,null,null,null,null,null,null,null,null,null,null,null,null,null,null,null,null,null,1,"Кемерово пр.Октябрьский"]
[null,null,null,null,null,null,null,null,null,null,null,null,null,null,null,null,null,null,null,null,null,null,null,null,null,null,null,null,null,null,null,null,null,null,null,null,null,null,null,null,null,null,null,null,null,null,null,null,null,null,null,null,null,null,null,null,null,null,null,null,null,null,null,null,null,null,null,null,null,null,null,null,null,null,null,null,null,null,null,null,null,null,null,null,null,null,null,null,null,null,null,null,null,null,null,null,null,null,null,null,null,null,null,null,null,null,null,null,null,null,null,null,null,null,null,null,null,null,null,null,null,null,null,null,null,null,null,null,null,null,null,null,null,null,null,null,null,null,null,null,null,null,null,null,null,null,null,null,null,null,null,null,null,null,null,null,null,null,null,null,null,null,null,null,null,null,null,null,null,null,null,null,null,null,null,null,null,null,null,null,null,null,null,null,null,null,null,null,null,null,null,null,null,null,null,null,null,null,null,null,null,null,null,null,null,null,null,null,null,null,null,null,null,null,null,null,null,null,null,null,null,null,null,null,null,null,null,null,null,null,null,null,null,null,null,null,null,null,null,null,null,null,null,null,null,null,null,null,null,null,null,null,null,null,null,null,null,null,null,null,null,null,null,null,null,null,null,null,null,null,null,null,null,null,null,null,null,null,null,null,null,null,null,null,null,null,null,null,null,null,null,null,null,null,null,null,null,null,null,null,null,null,null,null,null,null,null,null,null,null,null,null,null,null,null,null,null,null,null,null,null,null,null,null,null,null,null,null,null,null,null,null,null,null,null,null,null,null,null,null,null,null,null,null,null,null,null,null,null,null,null,null,null,null,null,null,null,null,null,null,null,null,null,null,null,null,null,null,null,null,null,null,null,null,null,null,null,null,null,null,null,null,null,2,"Балаково Оранж",null,null,null,null,null,null,null,null,null,null,null,null,null,null,null,null,null,null,null,null,null,null,null,null,null,null,null,null,null,null,null,null,null,null,null,null,null,null,null,null,null,null,null,null,null,null,null,null,null,"Барнаул ТЦ Район"]
[null,null,null,null,null,null,null,null,null,null,null,null,null,null,null,null,null,null,null,null,null,null,null,null,null,null,null,null,null,null,null,null,null,null,null,null,null,null,null,null,null,null,null,null,null,null,null,null,null,null,null,null,null,null,null,null,null,null,null,null,null,null,null,null,null,null,null,null,null,null,null,null,null,null,null,null,null,null,null,null,null,null,null,null,null,null,null,null,null,null,null,null,null,null,null,null,null,null,null,null,null,null,null,null,null,null,null,null,null,null,null,null,null,null,null,null,null,null,null,null,null,null,null,null,null,null,null,null,null,null,null,null,null,null,null,null,null,null,null,null,null,null,null,null,null,null,null,null,null,null,null,null,null,null,null,null,null,null,null,null,null,null,null,null,null,null,null,null,null,null,null,null,null,null,null,null,null,null,null,null,null,null,null,null,null,null,null,null,null,null,null,null,null,null,null,null,null,null,null,null,null,null,null,null,null,null,null,null,null,null,null,null,null,null,null,null,null,null,null,null,null,null,null,null,null,null,null,null,null,null,null,null,null,null,null,null,null,null,null,null,null,null,null,null,null,null,null,null,null,null,null,null,null,null,null,null,null,null,null,null,null,null,null,null,null,null,null,null,null,null,null,null,null,null,null,null,null,null,null,null,null,null,null,null,null,null,null,null,null,null,null,null,null,null,null,null,null,null,null,null,null,null,null,null,null,null,null,null,null,null,null,null,null,null,null,null,null,null,null,null,null,null,null,null,null,null,null,null,null,null,null,null,null,null,null,null,null,null,null,null,null,null,null,null,null,null,null,null,null,null,null,null,null,null,null,null,null,null,null,null,null,null,null,null,null,null,null,null,null,null,null,null,null,null,null,null,null,null,null,null,null,null,null,null,null,null,null,null,null,null,null,null,null,null,null,null,1,"Балаково Оранж",null,null,null,null,null,null,null,null,null,null,null,null,null,null,null,null,null,null,null,null,null,null,null,null,null,null,null,null,null,null,null,null,null,null,null,null,null,null,null,null,null,null,null,null,null,null,null,null,"Барнаул ТЦ Район"]
[null,null,null,null,null,null,null,null,null,null,null,null,null,null,null,null,null,null,null,null,null,null,null,null,null,null,null,null,null,null,null,null,null,null,null,null,null,null,null,null,null,null,null,null,null,null,null,null,null,null,null,null,null,null,null,null,null,null,null,null,null,null,null,null,null,null,null,null,null,null,null,null,null,null,null,null,null,null,null,null,null,null,null,null,null,null,null,null,null,null,null,null,null,null,null,null,null,null,null,null,null,null,null,null,null,null,null,null,null,null,null,null,null,null,null,null,null,null,null,null,null,null,null,null,null,null,null,null,null,null,null,null,null,null,null,null,null,null,null,null,null,null,null,null,null,null,null,null,null,null,null,null,null,null,null,null,null,null,null,null,null,null,null,null,null,null,null,null,null,null,null,null,null,null,null,null,null,null,null,null,null,null,null,null,null,null,null,null,null,null,null,null,null,null,null,null,null,null,null,null,null,null,null,null,null,null,null,null,null,null,null,null,null,null,null,null,null,null,null,null,null,null,null,null,null,null,null,null,null,null,null,null,null,null,null,null,null,null,null,null,null,null,null,null,null,null,null,null,null,null,null,null,null,null,null,null,null,null,null,null,null,null,null,null,null,null,null,null,null,null,null,null,null,null,null,null,null,null,null,null,null,null,null,null,null,null,null,null,null,null,null,null,null,null,null,null,null,null,null,null,null,null,null,null,null,null,null,null,null,null,null,null,null,null,null,null,null,null,null,null,null,null,null,null,null,null,null,null,null,null,null,null,null,null,null,null,null,null,null,null,null,null,null,null,null,null,null,null,null,null,null,null,null,null,null,null,null,null,null,null,null,null,null,null,null,null,null,null,null,null,null,null,null,null,null,null,null,null,null,null,null,null,null,0,"МСК Ангара",null,null,null,null,null,null,null,null,null,null,null,null,null,null,null,null,null,null,null,null,null,null,null,null,null,null,null,null,null,null,null,null,null,null,null,null,null,null,null,null,null,null,null,null,null,null,null,null,null,null,null,null,null,null,null,null,null,null,null,null,null,null,"Орехово-Зуево ТЦ Капитолий"]
[null,null,null,null,null,null,null,null,null,null,null,null,null,null,null,null,null,null,null,null,null,null,null,null,null,null,null,null,null,null,null,null,null,null,null,null,null,null,null,null,null,null,null,null,null,null,null,null,null,null,null,null,null,null,null,null,null,null,null,null,null,null,null,null,null,null,null,null,null,null,null,null,null,null,null,null,null,null,null,null,null,null,null,null,null,null,null,null,null,null,null,null,null,null,null,null,null,null,null,null,null,null,null,null,null,null,null,null,null,null,null,null,null,null,null,null,null,null,null,null,null,null,null,null,null,null,null,null,null,null,null,null,null,null,null,null,null,null,null,null,null,null,null,null,null,null,null,null,null,null,null,null,null,null,null,null,null,null,null,null,null,null,null,null,null,null,null,null,null,null,null,null,null,null,null,null,null,null,null,null,null,null,null,null,null,null,null,null,null,null,null,null,null,null,null,null,null,null,null,null,null,null,null,null,null,null,null,null,null,null,null,null,null,null,null,null,null,null,null,null,null,null,null,null,null,null,null,null,null,null,null,null,null,null,null,null,null,null,null,null,null,null,null,null,null,null,null,null,null,null,null,null,null,null,null,null,null,null,null,null,null,null,null,null,null,null,null,null,null,null,null,null,null,null,null,null,null,null,null,null,null,null,null,null,null,null,null,null,null,null,null,null,null,null,null,null,null,null,null,null,null,null,null,null,null,null,null,null,null,null,null,null,null,null,null,null,null,null,null,null,null,null,null,null,null,null,null,null,null,null,null,null,null,null,null,null,null,null,null,null,null,null,null,null,null,null,null,null,null,null,null,null,null,null,null,null,null,null,null,null,null,null,null,null,null,null,null,null,null,null,null,null,null,null,null,null,null,null,null,null,null,null,null,null,null,null,null,null,null,null,null,null,null,null,null,null,1,"МСК Ангара",null,null,null,null,null,null,null,null,null,null,null,null,null,null,null,null,null,null,null,null,null,null,null,null,null,null,null,null,null,null,null,null,null,null,null,null,null,null,null,null,null,null,null,null,null,null,null,null,null,null,null,null,null,null,null,null,null,null,null,null,null,"Орехово-Зуево ТЦ Капитолий"]
[null,null,null,null,null,null,null,null,null,null,null,null,null,null,null,null,null,null,null,null,null,null,null,null,null,null,null,null,null,null,null,null,null,null,null,null,null,null,null,null,null,null,null,null,null,null,null,null,null,null,null,null,null,null,null,null,null,null,null,null,null,null,null,null,null,null,null,null,null,null,null,null,null,null,null,null,null,null,null,null,null,null,null,null,null,null,null,null,null,null,null,null,null,null,null,null,null,null,null,null,null,null,null,null,null,null,null,null,null,null,null,null,null,null,null,null,null,null,null,null,null,null,null,null,null,null,null,null,null,null,null,null,null,null,null,null,null,null,null,null,null,null,null,null,null,null,null,null,null,null,null,null,null,null,null,null,null,null,null,null,null,null,null,null,null,null,null,null,null,null,null,null,null,null,null,null,null,null,null,null,null,null,null,null,null,null,null,null,null,null,null,null,null,null,null,null,null,null,null,null,null,null,null,null,null,null,null,null,null,null,null,null,null,null,null,null,null,null,null,null,null,null,null,null,null,null,null,null,null,null,null,null,null,null,null,null,null,null,null,null,null,null,null,null,null,null,null,null,null,null,null,null,null,null,null,null,null,null,null,null,null,null,null,null,null,null,null,null,null,null,null,null,null,null,null,null,null,null,null,null,null,null,null,null,null,null,null,null,null,null,null,null,null,null,null,null,null,null,null,null,null,null,null,null,null,null,null,null,null,null,null,null,null,null,null,null,null,null,null,null,null,null,null,null,null,null,null,null,null,null,null,null,null,null,null,null,null,null,null,null,null,null,null,null,null,null,null,null,null,null,null,null,null,null,null,null,null,null,null,null,null,null,null,null,null,null,null,null,null,null,null,null,null,null,null,null,null,null,null,null,null,null,null,null,null,null,null,null,null,null,2,"Бердск Меркурий",null,null,null,null,null,null,null,null,null,null,null,null,null,null,null,null,null,null,null,null,null,null,null,null,null,null,null,null,null,null,null,null,null,null,null,null,null,null,null,null,null,null,null,null,null,null,null,null,null,null,null,null,null,null,null,null,null,null,"Новоалтайск ТЦ Альфа"]
[null,null,null,null,null,null,null,null,null,null,null,null,null,null,null,null,null,null,null,null,null,null,null,null,null,null,null,null,null,null,null,null,null,null,null,null,null,null,null,null,null,null,null,null,null,null,null,null,null,null,null,null,null,null,null,null,null,null,null,null,null,null,null,null,null,null,null,null,null,null,null,null,null,null,null,null,null,null,null,null,null,null,null,null,null,null,null,null,null,null,null,null,null,null,null,null,null,null,null,null,null,null,null,null,null,null,null,null,null,null,null,null,null,null,null,null,null,null,null,null,null,null,null,null,null,null,null,null,null,null,null,null,null,null,null,null,null,null,null,null,null,null,null,null,null,null,null,null,null,null,null,null,null,null,null,null,null,null,null,null,null,null,null,null,null,null,null,null,null,null,null,null,null,null,null,null,null,null,null,null,null,null,null,null,null,null,null,null,null,null,null,null,null,null,null,null,null,null,null,null,null,null,null,null,null,null,null,null,null,null,null,null,null,null,null,null,null,null,null,null,null,null,null,null,null,null,null,null,null,null,null,null,null,null,null,null,null,null,null,null,null,null,null,null,null,null,null,null,null,null,null,null,null,null,null,null,null,null,null,null,null,null,null,null,null,null,null,null,null,null,null,null,null,null,null,null,null,null,null,null,null,null,null,null,null,null,null,null,null,null,null,null,null,null,null,null,null,null,null,null,null,null,null,null,null,null,null,null,null,null,null,null,null,null,null,null,null,null,null,null,null,null,null,null,null,null,null,null,null,null,null,null,null,null,null,null,null,null,null,null,null,null,null,null,null,null,null,null,null,null,null,null,null,null,null,null,null,null,null,null,null,null,null,null,null,null,null,null,null,null,null,null,null,null,null,null,null,null,null,null,null,null,null,null,null,null,null,null,null,null,null,null,null,null,null,null,null,null,null,null,null,null,null,1,"Бердск Меркурий",null,null,null,null,null,null,null,null,null,null,null,null,null,null,null,null,null,null,null,null,null,null,null,null,null,null,null,null,null,null,null,null,null,null,null,null,null,null,null,null,null,null,null,null,null,null,null,null,null,null,null,null,null,null,null,null,null,"Новоалтайск ТЦ Альфа"]
[null,null,null,null,null,null,null,null,null,null,null,null,null,null,null,null,null,null,null,null,null,null,null,null,null,null,null,null,null,null,null,null,null,null,null,null,null,null,null,null,null,null,null,null,null,null,null,null,null,null,null,null,null,null,null,null,null,null,null,null,null,null,null,null,null,null,null,null,null,null,null,null,null,null,null,null,null,null,null,null,null,null,null,null,null,null,null,null,null,null,null,null,null,null,null,null,null,null,null,null,null,null,null,null,null,null,null,null,null,null,null,null,null,null,null,null,null,null,null,null,null,null,null,null,null,null,null,null,null,null,null,null,null,null,null,null,null,null,null,null,null,null,null,null,null,null,null,null,null,null,null,null,null,null,null,null,null,null,null,null,null,null,null,null,null,null,null,null,null,null,null,null,null,null,null,null,null,null,null,null,null,null,null,null,null,null,null,null,null,null,null,null,null,null,null,null,null,null,null,null,null,null,null,null,null,null,null,null,null,null,null,null,null,null,null,null,null,null,null,null,null,null,null,null,null,null,null,null,null,null,null,null,null,null,null,null,null,null,null,null,null,null,null,null,null,null,null,null,null,null,null,null,null,null,null,null,null,null,null,null,null,null,null,null,null,null,null,null,null,null,null,null,null,null,null,null,null,null,null,null,null,null,null,null,null,null,null,null,null,null,null,null,null,null,null,null,null,null,null,null,null,null,null,null,null,null,null,null,null,null,null,null,null,null,null,null,null,null,null,null,null,null,null,null,null,null,null,null,null,null,null,null,null,null,null,null,null,null,null,null,null,null,null,null,null,null,null,null,null,null,null,null,null,null,null,null,null,null,null,null,null,null,null,null,null,null,null,null,null,null,null,null,null,null,null,null,null,null,null,null,null,null,null,null,null,null,null,null,null,null,null,null,null,null,null,null,null,null,1,"Калуга ТЦ Семейный",null,null,null,null,null,null,null,null,null,null,null,null,null,null,null,null,null,null,null,null,null,null,null,null,null,null,null,null,null,null,null,null,null,null,null,null,null,null,null,null,null,null,null,null,null,null,null,null,null,null,"МСК ТЦ Ангара"]
[null,null,null,null,null,null,null,null,null,null,null,null,null,null,null,null,null,null,null,null,null,null,null,null,null,null,null,null,null,null,null,null,null,null,null,null,null,null,null,null,null,null,null,null,null,null,null,null,null,null,null,null,null,null,null,null,null,null,null,null,null,null,null,null,null,null,null,null,null,null,null,null,null,null,null,null,null,null,null,null,null,null,null,null,null,null,null,null,null,null,null,null,null,null,null,null,null,null,null,null,null,null,null,null,null,null,null,null,null,null,null,null,null,null,null,null,null,null,null,null,null,null,null,null,null,null,null,null,null,null,null,null,null,null,null,null,null,null,null,null,null,null,null,null,null,null,null,null,null,null,null,null,null,null,null,null,null,null,null,null,null,null,null,null,null,null,null,null,null,null,null,null,null,null,null,null,null,null,null,null,null,null,null,null,null,null,null,null,null,null,null,null,null,null,null,null,null,null,null,null,null,null,null,null,null,null,null,null,null,null,null,null,null,null,null,null,null,null,null,null,null,null,null,null,null,null,null,null,null,null,null,null,null,null,null,null,null,null,null,null,null,null,null,null,null,null,null,null,null,null,null,null,null,null,null,null,null,null,null,null,null,null,null,null,null,null,null,null,null,null,null,null,null,null,null,null,null,null,null,null,null,null,null,null,null,null,null,null,null,null,null,null,null,null,null,null,null,null,null,null,null,null,null,null,null,null,null,null,null,null,null,null,null,null,null,null,null,null,null,null,null,null,null,null,null,null,null,null,null,null,null,null,null,null,null,null,null,null,null,null,null,null,null,null,null,null,null,null,null,null,null,null,null,null,null,null,null,null,null,null,null,null,null,null,null,null,null,null,null,null,null,null,null,null,null,null,null,null,null,null,null,null,null,null,null,null,null,null,null,null,null,null,null,null,null,null,null,null,null,null,null,null,null,null,null,null,null,null,null,null,1,"Калуга ТЦ Семейный",null,null,null,null,null,null,null,null,null,null,null,null,null,null,null,null,null,null,null,null,null,null,null,null,null,null,null,null,null,null,null,null,null,null,null,null,null,null,null,null,null,null,null,null,null,null,null,null,null,null,"МСК ТЦ Ангара"]
[null,null,null,null,null,null,null,null,null,null,null,null,null,null,null,null,null,null,null,null,null,null,null,null,null,null,null,null,null,null,null,null,null,null,null,null,null,null,null,null,null,null,null,null,null,null,null,null,null,null,null,null,null,null,null,null,null,null,null,null,null,null,null,null,null,null,null,null,null,null,null,null,null,null,null,null,null,null,null,null,null,null,null,null,null,null,null,null,null,null,null,null,null,null,null,null,null,null,null,null,null,null,null,null,null,null,null,null,null,null,null,null,null,null,null,null,null,null,null,null,null,null,null,null,null,null,null,null,null,null,null,null,null,null,null,null,null,null,null,null,null,null,null,null,null,null,null,null,null,null,null,null,null,null,null,null,null,null,null,null,null,null,null,null,null,null,null,null,null,null,null,null,null,null,null,null,null,null,null,null,null,null,null,null,null,null,null,null,null,null,null,null,null,null,null,null,null,null,null,null,null,null,null,null,null,null,null,null,null,null,null,null,null,null,null,null,null,null,null,null,null,null,null,null,null,null,null,null,null,null,null,null,null,null,null,null,null,null,null,null,null,null,null,null,null,null,null,null,null,null,null,null,null,null,null,null,null,null,null,null,null,null,null,null,null,null,null,null,null,null,null,null,null,null,null,null,null,null,null,null,null,null,null,null,null,null,null,null,null,null,null,null,null,null,null,null,null,null,null,null,null,null,null,null,null,null,null,null,null,null,null,null,null,null,null,null,null,null,null,null,null,null,null,null,null,null,null,null,null,null,null,null,null,null,null,null,null,null,null,null,null,null,null,null,null,null,null,null,null,null,null,null,null,null,null,null,null,null,null,null,null,null,null,null,null,null,null,null,null,null,null,null,null,null,null,null,null,null,null,null,null,null,null,null,null,null,null,null,null,null,null,null,null,null,null,null,null,null,null,null,null,null,null,null,null,null,null,null,null,null,null,null,null,null,null,null,null,null,null,null,null,null,null,null,null,null,null,null,null,null,null,null,null,null,null,null,null,null,null,null,null,null,null,null,null,null,null,null,null,null,null,null,null,null,null,null,null,null,"Ижевск ТЦ Матрица"]
[null,null,null,null,null,null,null,null,null,null,null,null,null,null,null,null,null,null,null,null,null,null,null,null,null,null,null,null,null,null,null,null,null,null,null,null,null,null,null,null,null,null,null,null,null,null,null,null,null,null,null,null,null,null,null,null,null,null,null,null,null,null,null,null,null,null,null,null,null,null,null,null,null,null,null,null,null,null,null,null,null,null,null,null,null,null,null,null,null,null,null,null,null,null,null,null,null,null,null,null,null,null,null,null,null,null,null,null,null,null,null,null,null,null,null,null,null,null,null,null,null,null,null,null,null,null,null,null,null,null,null,null,null,null,null,null,null,null,null,null,null,null,null,null,null,null,null,null,null,null,null,null,null,null,null,null,null,null,null,null,null,null,null,null,null,null,null,null,null,null,null,null,null,null,null,null,null,null,null,null,null,null,null,null,null,null,null,null,null,null,null,null,null,null,null,null,null,null,null,null,null,null,null,null,null,null,null,null,null,null,null,null,null,null,null,null,null,null,null,null,null,null,null,null,null,null,null,null,null,null,null,null,null,null,null,null,null,null,null,null,null,null,null,null,null,null,null,null,null,null,null,null,null,null,null,null,null,null,null,null,null,null,null,null,null,null,null,null,null,null,null,null,null,null,null,null,null,null,null,null,null,null,null,null,null,null,null,null,null,null,null,null,null,null,null,null,null,null,null,null,null,null,null,null,null,null,null,null,null,null,null,null,null,null,null,null,null,null,null,null,null,null,null,null,null,null,null,null,null,null,null,null,null,null,null,null,null,null,null,null,null,null,null,null,null,null,null,null,null,null,null,null,null,null,null,null,null,null,null,null,null,null,null,null,null,null,null,null,null,null,null,null,null,null,null,null,null,null,null,null,null,null,null,null,null,null,null,null,null,null,null,null,null,null,null,null,null,null,null,null,null,null,null,null,null,null,null,null,null,null,null,null,null,null,null,null,null,null,null,null,null,null,null,null,null,null,null,null,null,null,null,null,null,null,null,null,null,null,null,null,null,null,null,null,null,null,null,null,null,null,null,null,null,null,null,null,null,null,null,null,null,null,null,null,null,null,null,null,null,null,"Ижевск ТЦ Матрица"]

{"sheet":"ДанныеОткрытие","index":5,"n_rows":14,"n_cols":3,"rows_kept":14,"cut":false,"hidden":false,"merged":[]}
["Город","Москва"]
["ТЦ","Ангара"]
["Нач. обуч.","25.08"]
["Кон. обуч.","06.09"]
["Кол-во дней",null,{"$f":"B4-B3+1","v":13}]
["Приезд 1 тренера","24.08"]
["Уезд 1 тренера","06.09",{"$f":"B7-B6+1","v":14}]
["Приезд 2 тренера","30.08"]
["Уезд 2 тренера","19.09",{"$f":"B9-B8+1","v":21}]
["1 Поставка","06.09"]
["ТО","19.09"]
["ПО","28.09"]
["РП","Яковенко Виктор"]
["АГЗ","Федосеев Максим"]

{"sheet":"ДанныеПерсонал","index":6,"n_rows":20,"n_cols":13,"rows_kept":20,"cut":false,"hidden":false,"merged":[]}
["№","ФИО","Должность","Телефон","Город\nМагазин","Начало\nкоман-\nдировки","Начало\nкоман-\nдировки\n-1 день","Конец\nкоман-\nдировки","Конец\nкоман-\nдировки\n+1 день","Сред.\nЗП","Коэф/\nЧасы","Команд.\nЗП","НДФЛ"]
[{"$f":"ROW(2:2)-1","v":1},"Сбродов Дмитрий","ЗУМ","8-987-843-14-45","ЕКБ Оренбург Салмышская",null,null,null,null,33000,1.5,{"$f":"J2*K2","v":49500},1950]
[{"$f":"ROW(3:3)-1","v":2},"Собянин Сергей Александрови","ЗУМ","8-908-904-44-51","ЕКБ Екат Космонавтов Белка",null,"07.08",null,"25.08",null,1.5,0]
[3,"Невсевря Павел Викторович","ЗУМ","8-927-711-64-85","ЕКБ Самара Вива Лэнд",null,null,null,null,null,1.5,{"$f":"J4*K4","v":0}]
[4,"Карпова Екатерина Васильевна","ЗУМ ","8-964-996-99-98","ЕКБ Саратов ТЦ Хэппи Молл",null,null,null,null,null,1.5]
[5,"Гришакова Ольга","ЗУМ ","8-905-836-63-06","ЕКБ Челябинск Героев Танкограда",null,null,null,null,null,1]
[6,"Храмова Татьяна ","Ст кассир","8-982-611-41-75","ЕКБ Белинского",null,null,null,null,34400,1.5,{"$f":"J7*1.5/176*K7","v":439.77272727272725},2210]
[7,"Шелковникова Татьяна","Ст кассир","8-919-766-50-10","МСК Раменское",null,null,null,null,43920,null,{"$f":"J8*1.5/176*K8","v":0},2210]
[8,"Бондаренко Александра","Ст кассир","8-982-649-60-66","ЕКБ Гранат",null,null,null,null,34400,88,{"$f":"J9*1.5/176*K9","v":25800},2210]
[9,"Карташова Дарья","Ст. кассир","8-960-820-08-24","ЕКБ Самара ТЦ Мир"]
[10,"Крокодилов Сергей","Продавец-кассир","8-900-041-65-94","ЕКБ Гранат",null,null,null,null,31200,1.5,{"$f":"J11*K11","v":46800},1950]
[11,"Фазилов Илхомжон","Ст.кладовщик","8-963-446-15-63","ЕКБ Грибоедова","15.07",null,null,null,34400,1.5,{"$f":"J12*K12","v":51600},2210]
[12,"Афанасьев Кирилл","Ст.кладовщик","8-950-640-28-32","ЕКБ Краснолесье",null,null,null,null,36000,1.5,{"$f":"J13*K13","v":54000},2210]
[13,"Астафьев Василий Павлович","Ст. кладовщик","8-953-383-01-57","ЕКБ Екат Дирижабль",null,null,null,null,null,1.5]
[14,"Дабрундашвили Ираклий Рамазович","Ст. кладовщик","8-900-204-22-68","ЕКБ Екат Мамина-Сибиряка",null,null,null,null,null,1.5]
[15,"Грачев Игорь","Кладовщик","8-977-287-21-88","МСК Мытищи ТЦ Красный кит",null,null,null,null,43500,1.5,{"$f":"J16*K16","v":65250},2600]
[16]
[17]
[18]
[19]

{"sheet":"Формулы","index":7,"n_rows":67,"n_cols":23,"rows_kept":67,"cut":false,"hidden":false,"merged":[[41,8,41,9],[58,0,61,0],[28,0,47,0]]}
["Для ФинЧасти"]
[{"$f":"CONCATENATE(B2,\" \",C2,\" \",D2,\" \",E2,\" \",F2,\" \",G2,\" \",I2,\", \",J2,\", \",K2,\" \",L2,M2,\" \",N2,\" \",O2,\" \",P2,\" \",Q2,\" \",R2,\" \",S2,\" \",T2,\" \",U2)","v":"Командировка ЗУМ с 0 по 0 Сбродов Дмитрий, 8-987-843-14-45, (ср. 33000), ЕКБ Оренбург Салмышская , в ФОТ для бюджета на выезд (Ср.ЗП)*1,5 = 49500 + ндфл 1950 руб  (за месячную норму часов+переработки)"},"Командировка",{"$f":"ДанныеПерсонал!C2","v":"ЗУМ"},"с",{"$f":"ДанныеПерсонал!G2","v":"00:00:00"},"по",{"$f":"ДанныеПерсонал!I2","v":"00:00:00"},null,{"$f":"ДанныеПерсонал!B2","v":"Сбродов Дмитрий"},{"$f":"ДанныеПерсонал!D2","v":"8-987-843-14-45"},"(ср.",{"$f":"ДанныеПерсонал!J2","v":33000},"),",{"$f":"ДанныеПерсонал!E2","v":"ЕКБ Оренбург Салмышская"},",","в ФОТ для бюджета на выезд (Ср.ЗП)*1,5 =",{"$f":"ДанныеПерсонал!L2","v":49500},"+ ндфл",{"$f":"ДанныеПерсонал!M2","v":1950},"руб"," (за месячную норму часов+переработки)"]
[{"$f":"CONCATENATE(B3,\" \",C3,\" \",D3,\" \",E3,\" \",F3,\" \",G3,\" \",I3,\", \",J3,\", \",K3,\" \",L3,M3,\" \",N3,\" \",O3,\" \",P3,\" \",Q3,\" \",R3,\" \",S3,\" \",T3,\" \",U3)","v":"Командировка ЗУМ с 07.08 по 25.08 Собянин Сергей Александрови, 8-908-904-44-51, (ср. 0), ЕКБ Екат Космонавтов Белка , в ФОТ для бюджета на выезд (Ср.ЗП)*1,5 = 0 + ндфл 0 руб  (за месячную норму часов+переработки)"},"Командировка",{"$f":"ДанныеПерсонал!C3","v":"ЗУМ"},"с",{"$f":"ДанныеПерсонал!G3","v":"07.08"},"по",{"$f":"ДанныеПерсонал!I3","v":"25.08"},null,{"$f":"ДанныеПерсонал!B3","v":"Собянин Сергей Александрови"},{"$f":"ДанныеПерсонал!D3","v":"8-908-904-44-51"},"(ср.",{"$f":"ДанныеПерсонал!J3","v":0},"),",{"$f":"ДанныеПерсонал!E3","v":"ЕКБ Екат Космонавтов Белка"},",","в ФОТ для бюджета на выезд (Ср.ЗП)*1,5 =",{"$f":"ДанныеПерсонал!L3","v":0},"+ ндфл",{"$f":"ДанныеПерсонал!M3","v":0},"руб"," (за месячную норму часов+переработки)"]
[{"$f":"CONCATENATE(B4,\" \",C4,\" \",D4,\" \",E4,\" \",F4,\" \",G4,\" \",I4,\", \",J4,\", \",K4,\" \",L4,M4,\" \",N4,\" \",O4,\" \",P4,\" \",Q4,\" \",R4,\" \",S4,\" \",T4,\" \",U4)","v":"Командировка ЗУМ с 0 по 0 Невсевря Павел Викторович, 8-927-711-64-85, (ср. 0), ЕКБ Самара Вива Лэнд , в ФОТ для бюджета на выезд (Ср.ЗП)*1,5 = 0 + ндфл 0 руб  (за месячную норму часов+переработки)"},"Командировка",{"$f":"ДанныеПерсонал!C4","v":"ЗУМ"},"с",{"$f":"ДанныеПерсонал!G4","v":"00:00:00"},"по",{"$f":"ДанныеПерсонал!I4","v":"00:00:00"},null,{"$f":"ДанныеПерсонал!B4","v":"Невсевря Павел Викторович"},{"$f":"ДанныеПерсонал!D4","v":"8-927-711-64-85"},"(ср.",{"$f":"ДанныеПерсонал!J4","v":0},"),",{"$f":"ДанныеПерсонал!E4","v":"ЕКБ Самара Вива Лэнд"},",","в ФОТ для бюджета на выезд (Ср.ЗП)*1,5 =",{"$f":"ДанныеПерсонал!L4","v":0},"+ ндфл",{"$f":"ДанныеПерсонал!M4","v":0},"руб"," (за месячную норму часов+переработки)"]
[{"$f":"CONCATENATE(B5,\" \",C5,\" \",D5,\" \",E5,\" \",F5,\" \",G5,\" \",I5,\", \",J5,\", \",K5,\" \",L5,M5,\" \",N5,\" \",O5,\" \",P5,\" \",Q5,\" \",R5,\" \",S5,\" \",T5,\" \",U5)","v":"Командировка ЗУМ  с 0 по 0 Карпова Екатерина Васильевна, 8-964-996-99-98, (ср. 0), ЕКБ Саратов ТЦ Хэппи Молл , в ФОТ для бюджета на выезд (Ср.ЗП)*1,5 = 0 + ндфл 0 руб  (за месячную норму часов+переработки)"},"Командировка",{"$f":"ДанныеПерсонал!C5","v":"ЗУМ "},"с",{"$f":"ДанныеПерсонал!G5","v":"00:00:00"},"по",{"$f":"ДанныеПерсонал!I5","v":"00:00:00"},null,{"$f":"ДанныеПерсонал!B5","v":"Карпова Екатерина Васильевна"},{"$f":"ДанныеПерсонал!D5","v":"8-964-996-99-98"},"(ср.",{"$f":"ДанныеПерсонал!J5","v":0},"),",{"$f":"ДанныеПерсонал!E5","v":"ЕКБ Саратов ТЦ Хэппи Молл"},",","в ФОТ для бюджета на выезд (Ср.ЗП)*1,5 =",{"$f":"ДанныеПерсонал!L5","v":0},"+ ндфл",{"$f":"ДанныеПерсонал!M5","v":0},"руб"," (за месячную норму часов+переработки)",{"$f":"ДанныеПерсонал!K7","v":1.5}," часов)"]
[{"$f":"CONCATENATE(B6,\" \",C6,\" \",D6,\" \",E6,\" \",F6,\" \",G6,\" \",I6,\", \",J6,\", \",K6,\" \",L6,M6,\" \",N6,\" \",O6,\" \",P6,\" \",Q6,\" \",R6,\" \",S6,\" \",T6,\" \",U6)","v":"Командировка ЗУМ  с 0 по 0 Гришакова Ольга, 8-905-836-63-06, (ср. 0), ЕКБ Челябинск Героев Танкограда , в ФОТ для бюджета на выезд (Ср.ЗП)*1,5 = 0 + ндфл 0 руб  (за месячную норму часов+переработки)"},"Командировка",{"$f":"ДанныеПерсонал!C6","v":"ЗУМ "},"с",{"$f":"ДанныеПерсонал!G6","v":"00:00:00"},"по",{"$f":"ДанныеПерсонал!I6","v":"00:00:00"},null,{"$f":"ДанныеПерсонал!B6","v":"Гришакова Ольга"},{"$f":"ДанныеПерсонал!D6","v":"8-905-836-63-06"},"(ср.",{"$f":"ДанныеПерсонал!J6","v":0},"),",{"$f":"ДанныеПерсонал!E6","v":"ЕКБ Челябинск Героев Танкограда"},",","в ФОТ для бюджета на выезд (Ср.ЗП)*1,5 =",{"$f":"ДанныеПерсонал!L6","v":0},"+ ндфл",{"$f":"ДанныеПерсонал!M6","v":0},"руб"," (за месячную норму часов+переработки)",{"$f":"ДанныеПерсонал!K8","v":0}," часов)"]
[{"$f":"CONCATENATE(B7,\" \",C7,\" \",D7,\" \",E7,\" \",F7,\" \",G7,\" \",I7,\", \",J7,\", \",K7,\" \",L7,M7,\" \",N7,\" \",O7,\" \",P7,\" \",Q7,\" \",R7,\" \",S7,\" \",T7,\" \",U7)","v":"Командировка Ст кассир с 0 по 0 Храмова Татьяна , 8-982-611-41-75, (ср. 34400), ЕКБ Белинского , в ФОТ для бюджета на выезд (Ср.ЗП)*1,5 = 439,772727272727 + ндфл 2210 руб  (за месячную норму часов+переработки)"},"Командировка",{"$f":"ДанныеПерсонал!C7","v":"Ст кассир"},"с",{"$f":"ДанныеПерсонал!G7","v":"00:00:00"},"по",{"$f":"ДанныеПерсонал!I7","v":"00:00:00"},null,{"$f":"ДанныеПерсонал!B7","v":"Храмова Татьяна "},{"$f":"ДанныеПерсонал!D7","v":"8-982-611-41-75"},"(ср.",{"$f":"ДанныеПерсонал!J7","v":34400},"),",{"$f":"ДанныеПерсонал!E7","v":"ЕКБ Белинского"},",","в ФОТ для бюджета на выезд (Ср.ЗП)*1,5 =",{"$f":"ДанныеПерсонал!L7","v":439.77272727272725},"+ ндфл",{"$f":"ДанныеПерсонал!M7","v":2210},"руб"," (за месячную норму часов+переработки)",{"$f":"ДанныеПерсонал!K9","v":88}," часов)"]
[{"$f":"CONCATENATE(B8,\" \",C8,\" \",D8,\" \",E8,\" \",F8,\" \",G8,\" \",I8,\", \",J8,\", \",K8,\" \",L8,M8,\" \",N8,\" \",O8,\" \",P8,\" \",Q8,\" \",R8,\" \",S8,\" \",T8,\" \",U8)","v":"Командировка Ст кассир с 0 по 0 Шелковникова Татьяна, 8-919-766-50-10, (ср. 43920), МСК Раменское , в ФОТ для бюджета на выезд (Ср.ЗП)*1,5 = 0 + ндфл 2210 руб  (за месячную норму часов+переработки)"},"Командировка",{"$f":"ДанныеПерсонал!C8","v":"Ст кассир"},"с",{"$f":"ДанныеПерсонал!G8","v":"00:00:00"},"по",{"$f":"ДанныеПерсонал!I8","v":"00:00:00"},null,{"$f":"ДанныеПерсонал!B8","v":"Шелковникова Татьяна"},{"$f":"ДанныеПерсонал!D8","v":"8-919-766-50-10"},"(ср.",{"$f":"ДанныеПерсонал!J8","v":43920},"),",{"$f":"ДанныеПерсонал!E8","v":"МСК Раменское"},",","в ФОТ для бюджета на выезд (Ср.ЗП)*1,5 =",{"$f":"ДанныеПерсонал!L8","v":0},"+ ндфл",{"$f":"ДанныеПерсонал!M8","v":2210},"руб"," (за месячную норму часов+переработки)"]
[{"$f":"CONCATENATE(B9,\" \",C9,\" \",D9,\" \",E9,\" \",F9,\" \",G9,\" \",I9,\", \",J9,\", \",K9,\" \",L9,M9,\" \",N9,\" \",O9,\" \",P9,\" \",Q9,\" \",R9,\" \",S9,\" \",T9,\" \",U9)","v":"Командировка Ст кассир с 0 по 0 Бондаренко Александра, 8-982-649-60-66, (ср. 34400), ЕКБ Гранат , в ФОТ для бюджета на выезд (Ср.ЗП)*1,5 = 25800 + ндфл 2210 руб  (за месячную норму часов+переработки)"},"Командировка",{"$f":"ДанныеПерсонал!C9","v":"Ст кассир"},"с",{"$f":"ДанныеПерсонал!G9","v":"00:00:00"},"по",{"$f":"ДанныеПерсонал!I9","v":"00:00:00"},null,{"$f":"ДанныеПерсонал!B9","v":"Бондаренко Александра"},{"$f":"ДанныеПерсонал!D9","v":"8-982-649-60-66"},"(ср.",{"$f":"ДанныеПерсонал!J9","v":34400},"),",{"$f":"ДанныеПерсонал!E9","v":"ЕКБ Гранат"},",","в ФОТ для бюджета на выезд (Ср.ЗП)*1,5 =",{"$f":"ДанныеПерсонал!L9","v":25800},"+ ндфл",{"$f":"ДанныеПерсонал!M9","v":2210},"руб"," (за месячную норму часов+переработки)"]
[{"$f":"CONCATENATE(B10,\" \",C10,\" \",D10,\" \",E10,\" \",F10,\" \",G10,\" \",I10,\", \",J10,\", \",K10,\" \",L10,M10,\" \",N10,\" \",O10,\" \",P10,\" \",Q10,\" \",R10,\" \",S10,\" \",T10,\" \",U10)","v":"Командировка Ст. кассир с 0 по 0 Карташова Дарья, 8-960-820-08-24, (ср. 0), ЕКБ Самара ТЦ Мир , в ФОТ для бюджета на выезд (Ср.ЗП)*1,5 = 0 + ндфл 0 руб  (за месячную норму часов+переработки)"},"Командировка",{"$f":"ДанныеПерсонал!C10","v":"Ст. кассир"},"с",{"$f":"ДанныеПерсонал!G10","v":"00:00:00"},"по",{"$f":"ДанныеПерсонал!I10","v":"00:00:00"},null,{"$f":"ДанныеПерсонал!B10","v":"Карташова Дарья"},{"$f":"ДанныеПерсонал!D10","v":"8-960-820-08-24"},"(ср.",{"$f":"ДанныеПерсонал!J10","v":0},"),",{"$f":"ДанныеПерсонал!E10","v":"ЕКБ Самара ТЦ Мир"},",","в ФОТ для бюджета на выезд (Ср.ЗП)*1,5 =",{"$f":"ДанныеПерсонал!L10","v":0},"+ ндфл",{"$f":"ДанныеПерсонал!M10","v":0},"руб"," (за месячную норму часов+переработки)"]
[{"$f":"CONCATENATE(B11,\" \",C11,\" \",D11,\" \",E11,\" \",F11,\" \",G11,\" \",I11,\", \",J11,\", \",K11,\" \",L11,M11,\" \",N11,\" \",O11,\" \",P11,\" \",Q11,\" \",R11,\" \",S11,\" \",T11,\" \",U11)","v":"Командировка Продавец-кассир с 0 по 0 Крокодилов Сергей, 8-900-041-65-94, (ср. 31200), ЕКБ Гранат , в ФОТ для бюджета на выезд (Ср.ЗП)*1,5 = 46800 + ндфл 1950 руб  (за месячную норму часов+переработки)"},"Командировка",{"$f":"ДанныеПерсонал!C11","v":"Продавец-кассир"},"с",{"$f":"ДанныеПерсонал!G11","v":"00:00:00"},"по",{"$f":"ДанныеПерсонал!I11","v":"00:00:00"},null,{"$f":"ДанныеПерсонал!B11","v":"Крокодилов Сергей"},{"$f":"ДанныеПерсонал!D11","v":"8-900-041-65-94"},"(ср.",{"$f":"ДанныеПерсонал!J11","v":31200},"),",{"$f":"ДанныеПерсонал!E11","v":"ЕКБ Гранат"},",","в ФОТ для бюджета на выезд (Ср.ЗП)*1,5 =",{"$f":"ДанныеПерсонал!L11","v":46800},"+ ндфл",{"$f":"ДанныеПерсонал!M11","v":1950},"руб"," (за месячную норму часов+переработки)"]
[{"$f":"CONCATENATE(B12,\" \",C12,\" \",D12,\" \",E12,\" \",F12,\" \",G12,\" \",I12,\", \",J12,\", \",K12,\" \",L12,M12,\" \",N12,\" \",O12,\" \",P12,\" \",Q12,\" \",R12,\" \",S12,\" \",T12,\" \",U12)","v":"Командировка Ст.кладовщик с 0 по 0 Фазилов Илхомжон, 8-963-446-15-63, (ср. 34400), ЕКБ Грибоедова , в ФОТ для бюджета на выезд (Ср.ЗП)*1,5 = 51600 + ндфл 2210 руб  (за месячную норму часов+переработки)"},"Командировка",{"$f":"ДанныеПерсонал!C12","v":"Ст.кладовщик"},"с",{"$f":"ДанныеПерсонал!G12","v":"00:00:00"},"по",{"$f":"ДанныеПерсонал!I12","v":"00:00:00"},null,{"$f":"ДанныеПерсонал!B12","v":"Фазилов Илхомжон"},{"$f":"ДанныеПерсонал!D12","v":"8-963-446-15-63"},"(ср.",{"$f":"ДанныеПерсонал!J12","v":34400},"),",{"$f":"ДанныеПерсонал!E12","v":"ЕКБ Грибоедова"},",","в ФОТ для бюджета на выезд (Ср.ЗП)*1,5 =",{"$f":"ДанныеПерсонал!L12","v":51600},"+ ндфл",{"$f":"ДанныеПерсонал!M12","v":2210},"руб"," (за месячную норму часов+переработки)"]
[{"$f":"CONCATENATE(B13,\" \",C13,\" \",D13,\" \",E13,\" \",F13,\" \",G13,\" \",I13,\", \",J13,\", \",K13,\" \",L13,M13,\" \",N13,\" \",O13,\" \",P13,\" \",Q13,\" \",R13,\" \",S13,\" \",T13,\" \",U13)","v":"Командировка Ст.кладовщик с 0 по 0 Афанасьев Кирилл, 8-950-640-28-32, (ср. 36000), ЕКБ Краснолесье , в ФОТ для бюджета на выезд (Ср.ЗП)*1,5 = 54000 + ндфл 2210 руб  (за месячную норму часов+переработки)"},"Командировка",{"$f":"ДанныеПерсонал!C13","v":"Ст.кладовщик"},"с",{"$f":"ДанныеПерсонал!G13","v":"00:00:00"},"по",{"$f":"ДанныеПерсонал!I13","v":"00:00:00"},null,{"$f":"ДанныеПерсонал!B13","v":"Афанасьев Кирилл"},{"$f":"ДанныеПерсонал!D13","v":"8-950-640-28-32"},"(ср.",{"$f":"ДанныеПерсонал!J13","v":36000},"),",{"$f":"ДанныеПерсонал!E13","v":"ЕКБ Краснолесье"},",","в ФОТ для бюджета на выезд (Ср.ЗП)*1,5 =",{"$f":"ДанныеПерсонал!L13","v":54000},"+ ндфл",{"$f":"ДанныеПерсонал!M13","v":2210},"руб"," (за месячную норму часов+переработки)"]
[{"$f":"CONCATENATE(B14,\" \",C14,\" \",D14,\" \",E14,\" \",F14,\" \",G14,\" \",I14,\", \",J14,\", \",K14,\" \",L14,M14,\" \",N14,\" \",O14,\" \",P14,\" \",Q14,\" \",R14,\" \",S14,\" \",T14,\" \",U14)","v":"Командировка Ст. кладовщик с 0 по 0 Астафьев Василий Павлович, 8-953-383-01-57, (ср. 0), ЕКБ Екат Дирижабль , в ФОТ для бюджета на выезд (Ср.ЗП)*1,5 = 0 + ндфл 0 руб  (за месячную норму часов+переработки)"},"Командировка",{"$f":"ДанныеПерсонал!C14","v":"Ст. кладовщик"},"с",{"$f":"ДанныеПерсонал!G14","v":"00:00:00"},"по",{"$f":"ДанныеПерсонал!I14","v":"00:00:00"},null,{"$f":"ДанныеПерсонал!B14","v":"Астафьев Василий Павлович"},{"$f":"ДанныеПерсонал!D14","v":"8-953-383-01-57"},"(ср.",{"$f":"ДанныеПерсонал!J14","v":0},"),",{"$f":"ДанныеПерсонал!E14","v":"ЕКБ Екат Дирижабль"},",","в ФОТ для бюджета на выезд (Ср.ЗП)*1,5 =",{"$f":"ДанныеПерсонал!L14","v":0},"+ ндфл",{"$f":"ДанныеПерсонал!M14","v":0},"руб"," (за месячную норму часов+переработки)"]
[{"$f":"CONCATENATE(B15,\" \",C15,\" \",D15,\" \",E15,\" \",F15,\" \",G15,\" \",I15,\", \",J15,\", \",K15,\" \",L15,M15,\" \",N15,\" \",O15,\" \",P15,\" \",Q15,\" \",R15,\" \",S15,\" \",T15,\" \",U15)","v":"Командировка Ст. кладовщик с 0 по 0 Дабрундашвили Ираклий Рамазович, 8-900-204-22-68, (ср. 0), ЕКБ Екат Мамина-Сибиряка , в ФОТ для бюджета на выезд (Ср.ЗП)*1,5 = 0 + ндфл 0 руб  (за месячную норму часов+переработки)"},"Командировка",{"$f":"ДанныеПерсонал!C15","v":"Ст. кладовщик"},"с",{"$f":"ДанныеПерсонал!G15","v":"00:00:00"},"по",{"$f":"ДанныеПерсонал!I15","v":"00:00:00"},null,{"$f":"ДанныеПерсонал!B15","v":"Дабрундашвили Ираклий Рамазович"},{"$f":"ДанныеПерсонал!D15","v":"8-900-204-22-68"},"(ср.",{"$f":"ДанныеПерсонал!J15","v":0},"),",{"$f":"ДанныеПерсонал!E15","v":"ЕКБ Екат Мамина-Сибиряка"},",","в ФОТ для бюджета на выезд (Ср.ЗП)*1,5 =",{"$f":"ДанныеПерсонал!L15","v":0},"+ ндфл",{"$f":"ДанныеПерсонал!M15","v":0},"руб"," (за месячную норму часов+переработки)"]
[{"$f":"CONCATENATE(B16,\" \",C16,\" \",D16,\" \",E16,\" \",F16,\" \",G16,\" \",I16,\", \",J16,\", \",K16,\" \",L16,M16,\" \",N16,\" \",O16,\" \",P16,\" \",Q16,\" \",R16,\" \",S16,\" \",T16,\" \",U16)","v":"Командировка Кладовщик с 0 по 0 Грачев Игорь, 8-977-287-21-88, (ср. 43500), МСК Мытищи ТЦ Красный кит , в ФОТ для бюджета на выезд (Ср.ЗП)*1,5 = 65250 + ндфл 2600 руб  (за месячную норму часов+переработки)"},"Командировка",{"$f":"ДанныеПерсонал!C16","v":"Кладовщик"},"с",{"$f":"ДанныеПерсонал!G16","v":"00:00:00"},"по",{"$f":"ДанныеПерсонал!I16","v":"00:00:00"},null,{"$f":"ДанныеПерсонал!B16","v":"Грачев Игорь"},{"$f":"ДанныеПерсонал!D16","v":"8-977-287-21-88"},"(ср.",{"$f":"ДанныеПерсонал!J16","v":43500},"),",{"$f":"ДанныеПерсонал!E16","v":"МСК Мытищи ТЦ Красный кит"},",","в ФОТ для бюджета на выезд (Ср.ЗП)*1,5 =",{"$f":"ДанныеПерсонал!L16","v":65250},"+ ндфл",{"$f":"ДанныеПерсонал!M16","v":2600},"руб"," (за месячную норму часов+переработки)"]
[{"$f":"CONCATENATE(B17,\" \",C17,\" \",D17,\" \",E17,\" \",F17,\" \",G17,\" \",I17,\", \",J17,\", \",K17,\" \",L17,M17,\" \",N17,\" \",O17,\" \",P17,\" \",Q17,\" \",R17,\" \",S17,\" \",T17,\" \",U17)","v":"Командировка 0 с 0 по 0 0, 0, (ср. 0), 0 , в ФОТ для бюджета на выезд (Ср.ЗП)*1,5 = 0 + ндфл 0 руб  (за месячную норму часов+переработки)"},"Командировка",{"$f":"ДанныеПерсонал!C17","v":0},"с",{"$f":"ДанныеПерсонал!G17","v":"00:00:00"},"по",{"$f":"ДанныеПерсонал!I17","v":"00:00:00"},null,{"$f":"ДанныеПерсонал!B17","v":0},{"$f":"ДанныеПерсонал!D17","v":0},"(ср.",{"$f":"ДанныеПерсонал!J17","v":0},"),",{"$f":"ДанныеПерсонал!E17","v":0},",","в ФОТ для бюджета на выезд (Ср.ЗП)*1,5 =",{"$f":"ДанныеПерсонал!L17","v":0},"+ ндфл",{"$f":"ДанныеПерсонал!M17","v":0},"руб"," (за месячную норму часов+переработки)"]
[{"$f":"CONCATENATE(B18,\" \",C18,\" \",D18,\" \",E18,\" \",F18,\" \",G18,\" \",I18,\", \",J18,\", \",K18,\" \",L18,M18,\" \",N18,\" \",O18,\" \",P18,\" \",Q18,\" \",R18,\" \",S18,\" \",T18,\" \",U18)","v":"Командировка 0 с 0 по 0 0, 0, (ср. 0), 0 , в ФОТ для бюджета на выезд (Ср.ЗП)*1,5 = 0 + ндфл 0 руб  (за месячную норму часов+переработки)"},"Командировка",{"$f":"ДанныеПерсонал!C18","v":0},"с",{"$f":"ДанныеПерсонал!G18","v":"00:00:00"},"по",{"$f":"ДанныеПерсонал!I18","v":"00:00:00"},null,{"$f":"ДанныеПерсонал!B18","v":0},{"$f":"ДанныеПерсонал!D18","v":0},"(ср.",{"$f":"ДанныеПерсонал!J18","v":0},"),",{"$f":"ДанныеПерсонал!E18","v":0},",","в ФОТ для бюджета на выезд (Ср.ЗП)*1,5 =",{"$f":"ДанныеПерсонал!L18","v":0},"+ ндфл",{"$f":"ДанныеПерсонал!M18","v":0},"руб"," (за месячную норму часов+переработки)"]
[{"$f":"CONCATENATE(B19,\" \",C19,\" \",D19,\" \",E19,\" \",F19,\" \",G19,\" \",I19,\", \",J19,\", \",K19,\" \",L19,M19,\" \",N19,\" \",O19,\" \",P19,\" \",Q19,\" \",R19,\" \",S19,\" \",T19,\" \",U19)","v":"Командировка 0 с 0 по 0 0, 0, (ср. 0), 0 , в ФОТ для бюджета на выезд (Ср.ЗП)*1,5 = 0 + ндфл 0 руб  (за месячную норму часов+переработки)"},"Командировка",{"$f":"ДанныеПерсонал!C19","v":0},"с",{"$f":"ДанныеПерсонал!G19","v":"00:00:00"},"по",{"$f":"ДанныеПерсонал!I19","v":"00:00:00"},null,{"$f":"ДанныеПерсонал!B19","v":0},{"$f":"ДанныеПерсонал!D19","v":0},"(ср.",{"$f":"ДанныеПерсонал!J19","v":0},"),",{"$f":"ДанныеПерсонал!E19","v":0},",","в ФОТ для бюджета на выезд (Ср.ЗП)*1,5 =",{"$f":"ДанныеПерсонал!L19","v":0},"+ ндфл",{"$f":"ДанныеПерсонал!M19","v":0},"руб"," (за месячную норму часов+переработки)"]
[{"$f":"CONCATENATE(B20,\" \",C20,\" \",D20,\" \",E20,\" \",F20,\" \",G20,\" \",I20,\", \",J20,\", \",K20,\" \",L20,M20,\" \",N20,\" \",O20,\" \",P20,\" \",Q20,\" \",R20,\" \",S20,\" \",T20,\" \",U20)","v":"Командировка 0 с 0 по 0 0, 0, (ср. 0), 0 , в ФОТ для бюджета на выезд (Ср.ЗП)*1,5 = 0 + ндфл 0 руб  (за месячную норму часов+переработки)"},"Командировка",{"$f":"ДанныеПерсонал!C20","v":0},"с",{"$f":"ДанныеПерсонал!G20","v":"00:00:00"},"по",{"$f":"ДанныеПерсонал!I20","v":"00:00:00"},null,{"$f":"ДанныеПерсонал!B20","v":0},{"$f":"ДанныеПерсонал!D20","v":0},"(ср.",{"$f":"ДанныеПерсонал!J20","v":0},"),",{"$f":"ДанныеПерсонал!E20","v":0},",","в ФОТ для бюджета на выезд (Ср.ЗП)*1,5 =",{"$f":"ДанныеПерсонал!L20","v":0},"+ ндфл",{"$f":"ДанныеПерсонал!M20","v":0},"руб"," (за месячную норму часов+переработки)"]
[{"$f":"CONCATENATE(B21,\" \",C21,\" \",D21,\" \",E21,\" \",F21,\" \",G21,\" \",I21,\", \",J21,\", \",K21,\" \",L21,M21,\" \",N21,\" \",O21,\" \",P21,\" \",Q21,\" \",R21,\" \",S21,\" \",T21,\" \",U21)","v":"Командировка 0 с 0 по 0 0, 0, (ср. 0), 0 , в ФОТ для бюджета на выезд (Ср.ЗП)*1,5 = 0 + ндфл 0 руб  (за месячную норму часов+переработки)"},"Командировка",{"$f":"ДанныеПерсонал!C21","v":0},"с",{"$f":"ДанныеПерсонал!G21","v":"00:00:00"},"по",{"$f":"ДанныеПерсонал!I21","v":"00:00:00"},null,{"$f":"ДанныеПерсонал!B21","v":0},{"$f":"ДанныеПерсонал!D21","v":0},"(ср.",{"$f":"ДанныеПерсонал!J21","v":0},"),",{"$f":"ДанныеПерсонал!E21","v":0},",","в ФОТ для бюджета на выезд (Ср.ЗП)*1,5 =",{"$f":"ДанныеПерсонал!L21","v":0},"+ ндфл",{"$f":"ДанныеПерсонал!M21","v":0},"руб"," (за месячную норму часов+переработки)"]
[]
[{"$f":"CONCATENATE(B23,\" \",C23,\" \",D23, E23)","v":"г. Москва ТЦ Ангара"},"г.",{"$f":"ДанныеОткрытие!B1","v":"Москва"},"ТЦ ",{"$f":"ДанныеОткрытие!B2","v":"Ангара"}]
[{"$f":"CONCATENATE(B24,\" \",C24,\" \",D24,\" \",E24,\" \",F24,\" \",G24,\" \",I24)","v":"Аренда учебного класса с 25.08 по 06.09 - 13 дней"},"Аренда учебного класса с",{"$f":"ДанныеОткрытие!B3","v":"25.08"},"по",{"$f":"ДанныеОткрытие!B4","v":"06.09"},"-",{"$f":"ДанныеОткрытие!C5","v":13},null,"дней"]
[{"$f":"CONCATENATE(B25,\" \",C25,\" \",D25,\" \",E25)","v":"Командировка тренера №1 - с 24.08 по 06.09"},"Командировка тренера №1 - с",{"$f":"ДанныеОткрытие!B6","v":"24.08"},"по",{"$f":"ДанныеОткрытие!B7","v":"06.09"}]
[{"$f":"CONCATENATE(B26,\" \",C26,\" \",D26,\" \",E26)","v":"Командировка тренера №2 - с 30.08 по 19.09"},"Командировка тренера №2 - с",{"$f":"ДанныеОткрытие!B8","v":"30.08"},"по",{"$f":"ДанныеОткрытие!B9","v":"19.09"}]
[]
["Для отправки в Whatsapp",null,null,null,null,null,null,null,"РП","Телефон"]
[{"$f":"CONCATENATE(B29,CHAR(10),B30,CHAR(10),B31,CHAR(10),B32,CHAR(10),B33,CHAR(10),B34,CHAR(10),B35,CHAR(10),B36,CHAR(10),B37,CHAR(10),B38,CHAR(10),B39,CHAR(10),B40,CHAR(10),B49,CHAR(10),B50,CHAR(10),B51,CHAR(10),B52,CHAR(10),B53)","v":"Группа г. Москва\nСбродов Дмитрий - 0 по 0\nСобянин Сергей Александрови - 07.08 по 25.08\nНевсевря Павел Викторович - 0 по 0\nКарпова Екатерина Васильевна - 0 по 0\nГришакова Ольга - 0 по 0\nХрамова Татьяна  - 0 по 0\nШелковникова Татьяна - 0 по 0\nБондаренко Александра - 0 по 0\nКарташова Дарья - 0 по 0\nКрокодилов Сергей - 0 по 0\nФазилов Илхомжон - 0 по 0\nПервая поставка - 06.09\nТехническое открытие - 19.09\nПраздничное открытие - 28.09\nРуководитель проекта - Яковенко Виктор, 8-982-600-0311\nТренер на обьекте - Федосеев Максим, 8-908-909-3147"},{"$f":"CONCATENATE(C29,\" \",D29)","v":"Группа г. Москва"},"Группа г.",{"$f":"ДанныеОткрытие!B1","v":"Москва"}]
[null,{"$f":"CONCATENATE(C30,\" \",D30,\" \",E30,\" \",F30, G30)","v":"Сбродов Дмитрий - 0 по 0"},{"$f":"ДанныеПерсонал!B2","v":"Сбродов Дмитрий"},"-",{"$f":"ДанныеПерсонал!G2","v":0},"по ",{"$f":"ДанныеПерсонал!I2","v":0},null,"Акопов Андрей","8-922-038-8888"]
[null,{"$f":"CONCATENATE(C31,\" \",D31,\" \",E31,\" \",F31, G31)","v":"Собянин Сергей Александрови - 07.08 по 25.08"},{"$f":"ДанныеПерсонал!B3","v":"Собянин Сергей Александрови"},"-",{"$f":"ДанныеПерсонал!G3","v":"07.08"},"по ",{"$f":"ДанныеПерсонал!I3","v":"25.08"},null,"Босый Михаил","8-922-602-5273"]
[null,"Невсевря Павел Викторович - 0 по 0",{"$f":"ДанныеПерсонал!B4","v":"Невсевря Павел Викторович"},"-",{"$f":"ДанныеПерсонал!G4","v":0},"по ",{"$f":"ДанныеПерсонал!I4","v":0},null,"Голосов Станислав","8-912-612-9662"]
[null,"Карпова Екатерина Васильевна - 0 по 0",{"$f":"ДанныеПерсонал!B5","v":"Карпова Екатерина Васильевна"},"-",{"$f":"ДанныеПерсонал!G5","v":0},"по ",{"$f":"ДанныеПерсонал!I5","v":0},null,"Дубских Егор","8-922-128-6784","(",{"$f":"ДанныеПерсонал!K7","v":1.5},"часов)"]
[null,"Гришакова Ольга - 0 по 0",{"$f":"ДанныеПерсонал!B6","v":"Гришакова Ольга"},"-",{"$f":"ДанныеПерсонал!G6","v":0},"по ",{"$f":"ДанныеПерсонал!I6","v":0},null,"Леонов Павел","8-922-135-8060","(",{"$f":"ДанныеПерсонал!K8","v":0},"часов)"]
[null,"Храмова Татьяна  - 0 по 0",{"$f":"ДанныеПерсонал!B7","v":"Храмова Татьяна "},"-",{"$f":"ДанныеПерсонал!G7","v":0},"по ",{"$f":"ДанныеПерсонал!I7","v":0},null,"Орел Дмитрий","8-912-607-6723","(",{"$f":"ДанныеПерсонал!K9","v":88},"часов)"]
[null,"Шелковникова Татьяна - 0 по 0",{"$f":"ДанныеПерсонал!B8","v":"Шелковникова Татьяна"},"-",{"$f":"ДанныеПерсонал!G8","v":0},"по ",{"$f":"ДанныеПерсонал!I8","v":0},null,"Панькин Евгений","8-922-209-4879"]
[null,"Бондаренко Александра - 0 по 0",{"$f":"ДанныеПерсонал!B9","v":"Бондаренко Александра"},"-",{"$f":"ДанныеПерсонал!G9","v":0},"по ",{"$f":"ДанныеПерсонал!I9","v":0},null,"Переверзев Евгений","8-977-723-4221"]
[null,"Карташова Дарья - 0 по 0",{"$f":"ДанныеПерсонал!B10","v":"Карташова Дарья"},"-",{"$f":"ДанныеПерсонал!G10","v":0},"по ",{"$f":"ДанныеПерсонал!I10","v":0},null,"Сергееев Дмитрий","8-903-080-8487"]
[null,"Крокодилов Сергей - 0 по 0",{"$f":"ДанныеПерсонал!B11","v":"Крокодилов Сергей"},"-",{"$f":"ДанныеПерсонал!G11","v":0},"по ",{"$f":"ДанныеПерсонал!I11","v":0},null,"Чобанян Рафаэл","8-909-700-3470"]
[null,"Фазилов Илхомжон - 0 по 0",{"$f":"ДанныеПерсонал!B12","v":"Фазилов Илхомжон"},"-",{"$f":"ДанныеПерсонал!G12","v":0},"по ",{"$f":"ДанныеПерсонал!I12","v":0},null,"Яковенко Виктор","8-982-600-0311"]
[null,"Афанасьев Кирилл - 0 по 0",{"$f":"ДанныеПерсонал!B13","v":"Афанасьев Кирилл"},"-",{"$f":"ДанныеПерсонал!G13","v":0},"по ",{"$f":"ДанныеПерсонал!I13","v":0}]
[null,"Астафьев Василий Павлович - 0 по 0",{"$f":"ДанныеПерсонал!B14","v":"Астафьев Василий Павлович"},"-",{"$f":"ДанныеПерсонал!G14","v":0},"по ",{"$f":"ДанныеПерсонал!I14","v":0},null,"АГЗ"]
[null,"Дабрундашвили Ираклий Рамазович - 0 по 0",{"$f":"ДанныеПерсонал!B15","v":"Дабрундашвили Ираклий Рамазович"},"-",{"$f":"ДанныеПерсонал!G15","v":0},"по ",{"$f":"ДанныеПерсонал!I15","v":0}]
[null,"Грачев Игорь - 0 по 0",{"$f":"ДанныеПерсонал!B16","v":"Грачев Игорь"},"-",{"$f":"ДанныеПерсонал!G16","v":0},"по ",{"$f":"ДанныеПерсонал!I16","v":0},null,"Ишметов Руслан","8-982-620-6300",1]
[null,"0 - 0 по 0",{"$f":"ДанныеПерсонал!B17","v":0},"-",{"$f":"ДанныеПерсонал!G17","v":0},"по ",{"$f":"ДанныеПерсонал!I17","v":0},null,"Крокодилов Алексей","8-932-608-6708",2]
[null,"0 - 0 по 0",{"$f":"ДанныеПерсонал!B18","v":0},"-",{"$f":"ДанныеПерсонал!G18","v":0},"по ",{"$f":"ДанныеПерсонал!I18","v":0},null,"Берсенев Дмитрий В.","8-952-726-6692",3]
[null,"0 - 0 по 0",{"$f":"ДанныеПерсонал!B19","v":0},"-",{"$f":"ДанныеПерсонал!G19","v":0},"по ",{"$f":"ДанныеПерсонал!I19","v":0},null,"Михайленко Сергей","8-953-384-9915",4]
[null,"0 - 0 по 0",{"$f":"ДанныеПерсонал!B20","v":0},"-",{"$f":"ДанныеПерсонал!G20","v":0},"по ",{"$f":"ДанныеПерсонал!I20","v":0},null,"Бабин Максим","8-912 624 2114",5]
[null,{"$f":"CONCATENATE(C49,\" - \",D49)","v":"Первая поставка - 06.09"},"Первая поставка",{"$f":"ДанныеОткрытие!B10","v":"06.09"},null,null,null,null,"Заворин Михаил","8-982-608-0723",6]
[null,{"$f":"CONCATENATE(C50,\" - \",D50)","v":"Техническое открытие - 19.09"},"Техническое открытие",{"$f":"ДанныеОткрытие!B11","v":"19.09"},null,null,null,null,"Черненко Андрей","8-922-125-3323",7]
["Название файла",{"$f":"CONCATENATE(C51,\" - \",D51)","v":"Праздничное открытие - 28.09"},"Праздничное открытие",{"$f":"ДанныеОткрытие!B12","v":"28.09"},null,null,null,null,"Резин Алексей","8-905-802-9922",8]
[{"$f":"CONCATENATE(\"г. \",ДанныеОткрытие!B1,\" \",ДанныеОткрытие!A2,\" \",ДанныеОткрытие!B2)","v":"г. Москва ТЦ Ангара"},{"$f":"CONCATENATE(C52,\" - \",D52,\", \",E52)","v":"Руководитель проекта - Яковенко Виктор, 8-982-600-0311"},"Руководитель проекта",{"$f":"ДанныеОткрытие!B13","v":"Яковенко Виктор"},{"$f":"LOOKUP(D52,I28:I41,J28:J41)","v":"8-982-600-0311"},null,null,null,"Петров Александр","8-919-459-2095",9]
[null,{"$f":"CONCATENATE(C53,\" - \",D53,\", \",E53)","v":"Тренер на обьекте - Федосеев Максим, 8-908-909-3147"},"Тренер на обьекте",{"$f":"ДанныеОткрытие!B14","v":"Федосеев Максим"},{"$f":"LOOKUP(D53,I44:I60,J44:J60)","v":"8-908-909-3147"},null,null,null,"Иванов Иван","8-982 943 7431",10]
[null,null,null,null,null,null,null,null,"Чернозипунников Максим","8-922-139-9109",11]
[null,null,null,null,null,null,null,null,"Хамзин Сергей","8-982-734-5985",12]
[null,null,null,null,null,null,null,null,"Федосеев Максим","8-908-909-3147",13]
[null,null,null,null,null,null,null,null,"Железняк Илья","8-982-610-6408",14]
["Текст письмо РП",null,null,null,null,null,null,null,"Рожнов Андрей","8-909 008 8881",15]
[{"$f":"CONCATENATE(B66,CHAR(10),B67)","v":"Во вложении файл с датами командировки в г. Москва старт-ап команды, ФИО участников и их расчетная часть з/п.\nК командировкам всех сотрудников добавлен 1 дня -до и 1 день -после, на дорогу и заселение, ст кассир приезжает на 1 день раньше тех открытия магазина для проверки готовности касс. \nПрошу сообщить о согласовании командировки данных участников."},null,null,null,null,null,null,null,"Бастриков Александр","8-904 949 0404",16]
[null,null,null,null,null,null,null,null,"Шумских Игорь","8-963 007 0513",17]
[]
[]
[]
[null,null,null,{"$f":"ДанныеОткрытие!B1","v":"Москва"}]
[null,{"$f":"CONCATENATE(C65,\" \", D64,\" \",E65,\" \",F65)","v":"Данные по старт-ап команде г. Москва ТЦ Ангара"},"Данные по старт-ап команде г.",{"$f":"ДанныеОткрытие!B1","v":"Москва"},"ТЦ",{"$f":"ДанныеОткрытие!B2","v":"Ангара"}]
[null,{"$f":"CONCATENATE(C66,\" \", D65,\" \",E66,\" \",F66)","v":"Во вложении файл с датами командировки в г. Москва старт-ап команды, ФИО участников и их расчетная часть з/п.\nК командировкам всех сотрудников добавлен 1 дня -до и 1 день -после, на дорогу и заселение, ст кассир приезжает на 1 день раньше тех открытия магазина для проверки готовности касс. "},"Во вложении файл с датами командировки в г.",null,"старт-ап команды, ФИО участников и их расчетная часть з/п.\nК командировкам всех сотрудников добавлен 1 дня -до и 1 день -после, на дорогу и заселение, ст кассир приезжает на 1 день раньше тех открытия магазина для проверки готовности касс."]
[null,"Прошу сообщить о согласовании командировки данных участников."]